{"text_format":"1","workbook":"xlsx","n_sheets":24,"sheets":["Cover Page","Facility Info","Contents","Operational Data","Operational Summary","Perf. Form 1","Energy Form 1","Permit Compliance","Improvements","Public Liasion","CO2 N2O","Residue Quality ","Water","Air (periodic)","Air (CEMS)","HCl","SO2","NOx","TOC","Particulates","CO 0.5 hourly","CO 95% 10 min","NH3","Template changes log"],"not_rendered":{"charts":8,"images":3,"macros":1,"external_links":0,"defined_names":24,"comments":0,"pivot_tables":0},"unopened":[],"bounds":{"document_bytes":16777216,"sheet_cells":100000,"rows_first":2000,"rows_last":500,"rows_between":2000,"halvings":0,"cell_chars":16384,"cell_head_chars":4096},"cells_cut":0,"cells_raw":0,"read":"whole","date_system":"1900"}

{"sheet":"Cover Page","index":0,"n_rows":53,"n_cols":14,"rows_kept":53,"cut":false,"hidden":false,"merged":[[48,2,48,3],[48,6,48,8],[52,2,52,3],[36,1,36,8],[40,2,40,8],[42,2,42,4],[44,2,44,4],[46,2,46,3],[46,6,46,8],[13,13,18,15],[34,1,34,8],[0,3,5,6],[7,1,23,8],[28,1,28,8],[30,1,30,8],[32,1,32,8]]}
[null,null,null,"Add company logo"]
[null,null,null,null,null,null,null,null,null,null,null,null,null,"Version 24.2a (for incinerators) - 27/11/24"]
[]
[null,null,null,null,null,null,null,null,null,null,null,null,null,"Note that there is another version of this template available for co-incinerators"]
[]
[]
[]
[null,"Add photo"]
[]
[]
[]
[]
[null,null,null,null,null,null,null,null,null,null,null,null,null,"Notes:"]
[null,null,null,null,null,null,null,null,null,null,null,null,null,"This template may require adjustments by individual operators to meet specific reporting requirements as defined in the site Permit(s)"]
[]
[]
[]
[]
[]
[]
[]
[]
[]
[]
[]
[]
[]
[]
[null,"Annual Performance Report 2024"]
[]
[null,"Permit EPR/NP3739PD/v009"]
[]
[null,"The Coventry and Solihull Waste Disposal Company Limited"]
[]
[null,"CSWDC"]
[]
[null,"CSWDC"]
[]
[null,"Year:",2024]
[]
[null,"Address:","Bar Road, Coventry CV3 4AN"]
[]
[null,"Tel: ","02476507400"]
[]
[null,"Email: ","info@cswdc.co.uk"]
[]
[null,"Prepared by:","M Schilling",null,null,"Position:","EHS Advisor"]
[]
[null,"Approved by:","E Price",null,null,"Position:","CP Manager"]
[]
[null,"Version:"]
[]
[null,"Issue Date:","2025-02-21"]

{"sheet":"Facility Info","index":1,"n_rows":22,"n_cols":11,"rows_kept":22,"cut":false,"hidden":false,"merged":[[4,0,17,8],[21,0,53,8],[4,10,13,13],[21,10,30,13]]}
[{"$f":"+'Cover Page'!$B$29","v":"Annual Performance Report 2024"},null,null,null,{"$f":"+'Cover Page'!$B$33","v":"The Coventry and Solihull Waste Disposal Company Limited"}]
[]
["Plant Description and Design",null,null,null,null,null,null,null,null,null,"Notes:"]
[]
["The Waste to Energy plant, which is located at Bar Road in Coventry, processes Municipal Household waste arising in the City of Coventry and the neighbouring borough of Solihull. Municipal household waste from other nearby local authorities is also processed at the plant. \n\nThe plant is operated by The Coventry and Solihull Waste Disposal Company Ltd.    The main activity at the installation is thermal treatment of municipal waste and recovery of energy, in the form of heat which is converted to electricity for export to the grid. The installation also has the capability to export heat in the form of either High or Low Pressure steam to a district heating scheme operated by Engie UK. A limited amount of hazardous waste, containing less than 1% halogenated organic substances (as chlorine), is also burned with the municipal waste.\n \nThe installation includes waste receipt and storage, steam generation boilers, abatement of the exhaust gas, on-site storage of residues and all systems for controlling and monitoring combustion operation. The steam produced is used to drive 2 steam turbine driven generators.\n\nThe plant design is capable of processing approximately 315,000 tonnes of waste per annum/36 tonnes per hour in three combustion units (12 tonne per unit). The heat produced is used to generate 17.7MW of electricity and up to 16MW heat energy. \n\nRefuse collection vehicles enter the reception hall and deposit their waste into a storage bunker. The material is then loaded by crane into each of the combustion units via feed hoppers from the storage bunker. After entering the combustion chamber via the refuse feed ram the material is allowed to fall onto the grate in a controlled manner. The moving grate mechanisms are used to agitate the waste as it progresses down to the ash discharge. \n \nAs the waste moves along, pre-heated primary air is introduced from beneath the grate enabling the waste to go through a series of drying and burning areas. Secondary air is introduced from above the grate for combustion control.  Auxiliary gas fired burners are located in the combustion chamber both to heat it up on start-up and to maintain the final gas temperature if necessary. The hot gases are maintained at a minimum temperature of 850C for 2 seconds in the combustion chamber before passing to the boiler, economiser and abatement plant. Each combustion unit is equipped with a 3-bank water tube boiler, raising steam at 17 bar and 208C.  Economisers are fitted downstream of each combustion unit to pre-heat the incoming feed water. \n\nCombustion is controlled with the use of an infrared imaging computer system, which uses fuzzy logic systems to control various parameters of the plant, ensuring improved efficiency and emission performance when compared to fully manual control.\n \nEach combustion unit is provided with its own gas cleaning and monitoring equipment. Gas cleaning comprises activated carbon injection, then dry scrubbing with hydrated lime. The gases pass through bag filters to remove particulates prior to discharge to atmosphere via a single 92m stack. NOx control is achieved by Selective Non Catalytic Reduction (SNCR) using ammonium hydroxide injection. \n \nEmissions from the stack are continuously monitored for particulates, carbon monoxide (CO), sulphur dioxide (SO2), hydrogen chloride (HCl), oxygen (O2), nitrogen oxides (NOx) and volatile organic compounds (VOC). \n\nThere is no discharge of process liquids to controlled waters. Uncontaminated surface and roof waters are discharged to the surface water drainage system, via penstock equipped interceptors. All process waste waters are discharged to foul sewer and these are treated at Finham Sewage Treatment Works, which is operated by Severn Trent Water.\n\nBottom ash and metal content from the combustion unit grate is quenched with water. Both fractions are then conveyed to individual concrete storage bunkers prior to removal for reprocessing into aggregates or for recycling back into the steel industry. \nAir Pollution Control Residues (APCR) from the bag filters are collected continuously and stored in an enclosed silo prior to removal from site for disposal. ",null,null,null,null,null,null,null,null,null,"Include summary of plant design, design capacity, no. of combustion lines, electrical and heat capacity and any other general information that describes the facility, its location and purpose "]
[]
[]
[]
[]
[]
[]
[]
[]
[]
[]
[]
[]
[]
[]
["Summary of Operational Processes and Procedures"]
[]
["The plant consists of three separate combustion units that process up to a maximum of 12 tonnes of waste per hour.\nThere are two steam turbine driven electrical generating sets on the plant which convert the heat energy recovered from the combustion process into electricity. The generating sets are designated as G1 and G2. G1 has a capacity of 12.9MW and G2 a capacity of 4.8 MW. The process energy requirements are taken from the electricity generated and the surplus is exported to the grid. The plant also has the capacity to export heat, in the form of high pressure and low pressure steam.\nThe following table categorises the types of wastes processed.\nEWC Code and Description               \n02 03 04 materials unsuitable for consumption or processing\n03 01 04* sawdust, shavings, cuttings, wood, particle board and veneer containing hazardous \nsubstances (Oily and wood/veneer hazardous waste)\n13 07 01* fuel oil and diesel (Oily and wood/veneer hazardous waste)\n13 08 99* wastes not otherwise specified (Oily and wood/veneer hazardous waste)\n15 02 02* absorbents, filter materials (including oil filters not otherwise specified), wiping cloths, protective clothing contaminated by hazardous substances (Oily and wood/veneer hazardous waste)\n15 02 03 absorbents, filter materials, wiping cloths and protective clothing other than those mentioned in 15 02 02 (Oily and wood/veneer hazardous waste) 16 07 08* wastes containing oil (Oily and wood/veneer hazardous waste)\n18 01 04 wastes whose collection and disposal is not subject to special requirements in order to prevent infection (for example dressings, plaster casts, linen, disposable clothing, diapers)\n18 01 06* chemicals consisting of or containing hazardous substances\n18 01 07 chemicals other than those mentioned in 18 01 06\n18 01 09 medicines other than those mentioned in 18 01 08\n19 01 99 wastes not otherwise specified\n19 12 01 paper and cardboard\n19 12 08 textiles\n19 12 10 combustible waste (refuse derived fuel)\n19 12 12 other wastes (including mixtures of materials) from mechanical treatment of wastes other than those mentioned in 19 12 11\n20 01 01 paper and cardboard\n20 01 08 biodegradable kitchen and canteen waste\n20 01 11 textiles\n20 02 01 biodegradable waste\n20 03 01 mixed municipal waste\n20 03 02 waste from markets\n20 03 07 bulky waste\n20 03 99 municipal wastes not otherwise specified\n",null,null,null,null,null,null,null,null,null,"Include summary of key processes and procedures such as (but not limited to); waste reception, control rooms, grate, bed and boiler, energy & heat  generation, cooling systems, residue management, emission controls, health and safety systems, maintenance"]

{"sheet":"Contents","index":2,"n_rows":45,"n_cols":11,"rows_kept":45,"cut":false,"hidden":false,"merged":[[44,0,47,9],[37,1,37,6],[38,1,38,6],[39,1,39,6],[40,1,40,6],[41,1,41,6],[42,1,42,6],[36,1,36,6],[22,1,22,6],[23,1,23,6],[24,1,24,6],[27,1,27,6],[28,1,28,6],[29,1,29,6],[30,1,30,6],[31,1,31,6],[32,1,32,6],[35,1,35,6],[21,1,21,6],[9,1,9,6],[10,1,10,6],[11,1,11,6],[13,1,13,6],[14,1,14,6],[15,1,15,6],[16,1,16,6],[17,1,17,6],[18,1,18,6],[19,1,19,6],[20,1,20,6],[12,1,12,6],[4,10,7,14],[8,1,8,6],[3,1,3,6],[4,1,4,6],[5,1,5,6],[6,1,6,6],[7,1,7,6]]}
[{"$f":"+'Cover Page'!$B$29","v":"Annual Performance Report 2024"},null,null,null,{"$f":"+'Cover Page'!$B$33","v":"The Coventry and Solihull Waste Disposal Company Limited"}]
[]
["Contents",null,null,null,null,null,null,null,null,null,"Notes:"]
["Section","Subject",null,null,null,null,null,"Page ",null,null,"Section references and Page nos. to be inserted"]
[null,"Facility Information",null,null,null,null,null,null,null,null,"Sections and Subjects may require adjustment by individual operators to meet specific reporting requirements as defined in the sites Permit(s)"]
[null,"Operational Data"]
[null,"Operational Summary"]
[null,"Performance Form 1"]
[null,"Energy Form 1"]
[null,"Permit Compliance"]
[null,"Improvements"]
[null,"Public Liaison"]
[null,"Carbon dioxide and nitrous oxide emissions"]
[null,"Residue Quality "]
[null,"Emissions to Water"]
[null,"Emissions to Air (periodically monitored)"]
[null,"Emissions to Air (continuously monitored)"]
[null,"Hydrogen Chloride emissions"]
[null,"Sulphur Dioxide emissions"]
[null,"Oxides of Nitrogen emissions"]
[null,"Total Organic Carbon emissions"]
[null,"Particulate Matter emissions"]
[null,"Carbon Monoxide emissions"]
[null,"Ammonia emissions"]
[]
[]
["Version Control"]
["Section","Information",null,null,null,null,null,"Date"]
[]
[]
[]
[]
[]
[]
["Distribution"]
["Copy","Name, Role",null,null,null,null,null,"No."]
[]
[]
[]
[]
[]
[]
[]
[]
["This report is required under the Industrial Emissions Directive’s Article 55(2) requirements on reporting and public information on waste incineration plants and co-incineration plants, which require the operator to produce an annual report on the functioning and monitoring of the plant and make it available to the public. "]

{"sheet":"Operational Data","index":3,"n_rows":67,"n_cols":10,"rows_kept":67,"cut":false,"hidden":false,"merged":[[66,0,66,7],[5,9,7,9],[52,0,56,0],[33,1,38,1],[3,1,3,2],[7,1,19,1],[23,1,26,1],[28,1,29,1],[9,9,20,9],[21,9,25,9]]}
[{"$f":"+'Cover Page'!$B$29","v":"Annual Performance Report 2024"},null,null,null,{"$f":"+'Cover Page'!$B$33","v":"The Coventry and Solihull Waste Disposal Company Limited"}]
[]
["Operational Data"]
["Plant Size",315000,null,"tonnes pa",77,"MWth",18,"MWe",null,"Notes:"]
["No. of combustion lines",3,null,"No. of Turbines:",null,2,null,null,null,"* - RDF to include SRF "]
[null,null,null,null,null,null,null,null,null,"** - Combusted tonnage = tonnes delivered in period + (tonnes in bunker at start of period – tonnes in bunker at end of period), or equivalent calculation depending on plant type"]
["Waste types received","Unit","Q1","Q2","Q3","Q4","Year Total","%"]
["Household / Local Authority","tonnes",73427.350000000006,74726.89,66635.850000000006,76373.67,{"$f":"SUM(C8:F8)","v":291163.76},{"$f":"IF(G8>0,G8/$G$18,\"-\")","v":0.99896951291876046}]
["Commercial & Industrial ",null,null,null,0.1,1.52,{"$f":"SUM(C9:F9)","v":1.62},5.5581457353359915E-6,null,"*** - CHP plants only"]
["Hazardous ",null,198.46,58.44,26.36,15.47,298.73,1.024928935504272E-3,null,"**** Availability Definition: 'the availability of a line is to be calculated by the number of hours the line reported Continuously Monitored emission levels to the Regulator through the calendar year divided by the total number of hours in that year. \n\nThe overall plant availability is calculated as the Mean of all lines in the plant. For clarity this includes periods of abnormal operation.'  \n\nRationale: The primary function of an Energy from Waste facility is the disposal of waste. It follows therefore that the availability of a plant is determined by the period of time a facility spends undertaking this activity."]
["Clinical",null,null,null,null,null,0,"-"]
["Waste wood (biomass) ",null,null,null,null,null,0,"-"]
["Refuse Derived Fuel * - H'hold/LA",null,null,null,null,null,{"$f":"SUM(C13:F13)","v":0},"-"]
["Refuse Derived Fuel *  - C&I",null,null,null,null,null,0,"-"]
["Other [Please specify]",null,null,null,null,null,0,"-"]
["Other [Please specify]",null,null,null,null,null,0,"-"]
["Other [Please specify]",null,null,null,null,null,0,"-"]
["Total waste received",null,{"$f":"SUM(C8:C17)","v":73625.810000000012},{"$f":"SUM(D8:D17)","v":74785.33},{"$f":"SUM(E8:E17)","v":66662.310000000012},{"$f":"SUM(F8:F17)","v":76390.66},291464.11]
["Rejected Waste ",null,null,null,null,null,{"$f":"SUM(C19:F19)","v":0},{"$f":"IF(G19>0,G19/$G$18,\"-\")","v":"-"}]
["Unprocessed waste transferred out",null,null,null,null,null,{"$f":"SUM(C20:F20)","v":0},{"$f":"IF(G20>0,G20/$G$18,\"-\")","v":"-"}]
["Total waste combusted **",null,73626,74785,66662,76391,{"$f":"SUM(C21:F21)","v":291464}]
[null,null,null,null,null,null,null,null,null,"Password for protected cells\nA password has been set to prevent accidental  editing of cells with formulae. \nIf you still need to make an edit for some reason then the password = 1234"]
["Energy Usage / Export","Unit","Q1","Q2","Q3","Q4","Year Total","KWh/te"]
["Power Generated","MWh",9409.7999999999993,9340.0499999999993,10113.719999999999,9191.89,{"$f":"SUM(C24:F24)","v":38055.46},{"$f":"IF(G24>0,G24*1000/$G$21,\"-\")","v":130.56658798342161}]
["Power Exported",null,4540,4483,4845,4309,{"$f":"SUM(C25:F25)","v":18177},{"$f":"IF(G25>0,G25*1000/$G$21,\"-\")","v":62.364477259627265}]
["Power Used on site",null,4919,4900,5317,4930,{"$f":"SUM(C26:F26)","v":20066},{"$f":"IF(G26>0,G26*1000/$G$21,\"-\")","v":68.845552109351416}]
["Power Imported",null,7,84,3,6,100,{"$f":"IF(G27>0,G27*1000/$G$21,\"-\")","v":0.34309554524744051}]
["Parasitic Load","%",{"$f":"IF(C24>0,1-C25/(C24+C27),\"-\")","v":0.51788293263104235},{"$f":"IF(D24>0,1-D25/(D24+D27),\"-\")","v":0.52430218430504927},{"$f":"IF(E24>0,1-E25/(E24+E27),\"-\")","v":0.52108983939458642},{"$f":"IF(F24>0,1-F25/(F24+F27),\"-\")","v":0.53152299059893082},{"$f":"IF(G24>0,1-G25/(G24+G27),\"-\")","v":0.52360684421050085}]
["Thermal Energy Produced ***","MWh",5700,3417,3148,5199,{"$f":"SUM(C29:F29)","v":17464},{"$f":"IF(G29>0,G29*1000/$G$21,\"-\")","v":59.91820602201301}]
["Thermal Energy Exported ***",null,5090,3051,2811,4642,15594,{"$f":"IF(G30>0,G30*1000/$G$21,\"-\")","v":53.502319325885871}]
["R1 value (if applicable)","R1"]
[]
["Waste Disposal & Recovery","Unit","Q1","Q2","Q3","Q4","Year Total","% inputs"]
["APC Residues - produced","tonnes",3263.4,3330.6,2592.6999999999998,3081.96,{"$f":"SUM(C34:F34)","v":12268.66},{"$f":"IF(G34>0,G34/$G$21,\"-\")","v":4.2093225921554636E-2}]
["IBA - produced",null,11041.3,11685.25,10324.629999999999,11160.8,44211.979999999996,{"$f":"IF(G35>0,G35/$G$21,\"-\")","v":0.15168933384568933}]
["Metals recycling",null,1281.3800000000001,1259.97,1142.75,1303.33,{"$f":"SUM(C36:F36)","v":4987.43},1.7111650152334422E-2]
["Other",null,0,0,0,0,{"$f":"SUM(C37:F37)","v":0},"-"]
["Other",null,0,0,0,0,0,"-"]
["Other",null,0,0,0,0,0,"-"]
[]
["Raw Material Usage","Unit","Q1","Q2","Q3","Q4","Year Total","kg or Ltr /te"]
["Mains Water","m3",25321,27366,28596,28576,{"$f":"SUM(C42:F42)","v":109859},{"$f":"IF(G42>0,G42/$G$21,\"-\")","v":0.37692133505338565}]
["Other Water","m3",412,1263,0,0,1675,{"$f":"IF(G43>0,G43/$G$21,\"-\")","v":5.7468503828946287E-3}]
["Ammonia","t",375,356,341,282,1354,4.6455136826503447E-3]
["Urea","t",null,null,null,null,{"$f":"SUM(C45:F45)","v":0},"-"]
["Activated Carbon","t",26.9,22.2,20,24.1,93.199999999999989,3.1976504817061454E-4]
["Lime / hydrated lime","t",1685,1713,1192,1420,6010,2.0620042269371173E-2]
["Fuel oil","ltrs",10242,9422,8100,11450,39214,0.13454148711333133]
["Gas","100's cf",7126,6453,5762,4333,23674]
["Other",null,null,null,null,null,0]
[]
["Summary ","Line/Unit","Q1","Q2","Q3","Q4","Year Total",null,"Hrs in year "]
["Availability of waste combustion by line, hrs ****",1,1925,1978,1632,2203,{"$f":"SUM(C53:F53)","v":7738},{"$f":"+G53/$I$53","v":0.88091985428051001},8784,"Change this figure to 8784 in a leap year"]
[null,2,1980,2092,1684,2136,7892,{"$f":"+G54/$I$53","v":0.89845173041894355}]
[null,3,2165,1920,2203,1756,8044,0.91575591985428051]
[null,4]
[null,5]
["Overall Availability, mean avg. of all lines, hrs",null,null,null,null,null,{"$f":"AVERAGE(G53:G55)","v":7891.333333333333},0.89837583485124461]
["Hours of turbine operations, hrs",1,0,0,0,0,0,0]
["Hours of turbine operations, hrs",2,2182,2153,2207,2208,8750,0.99612932604735882]
["Hours of heat / steam export",null,2182,2153,2207,2208,8750,{"$f":"IF(B61>0,G60/I53,\"n/a\")","v":"n/a"}]
["Net Calorific Value of waste","GJ/T",9.4,9.4,9.4,9.4]
["Abnormal Events","qty.",0,0,0,0,0,{"$f":"IF(G63>0,\"yes\",\"no\")","v":"no"}]
["Abnormal operation","hours",0,0,0,0,0,{"$f":"+(G64)/I53","v":0}]
["Permit Breaches","qty.",0,0,0,0,0,{"$f":"IF(G65>0,\"yes\",\"no\")","v":"no"}]
[]
["Please note that the main turbine 'G1' was off line all year due to a catastrophic failure in 2023, therefore the amounts of power produced and exported will be much lower that would normally be expected for the plant capacity"]

{"sheet":"Operational Summary","index":4,"n_rows":70,"n_cols":11,"rows_kept":70,"cut":false,"hidden":false,"merged":[[69,1,69,8],[66,1,66,8],[67,1,67,8],[68,1,68,8],[62,1,62,8],[63,1,63,8],[64,1,64,8],[58,1,58,8],[59,1,59,8],[4,0,26,8],[30,0,51,8],[4,10,13,13],[30,10,39,13],[54,1,54,8],[53,1,53,8],[54,10,66,13],[65,1,65,8],[61,1,61,8],[55,1,55,8],[56,1,56,8],[57,1,57,8],[60,1,60,8]]}
[{"$f":"+'Cover Page'!$B$29","v":"Annual Performance Report 2024"},null,null,null,{"$f":"+'Cover Page'!$B$33","v":"The Coventry and Solihull Waste Disposal Company Limited"}]
[]
["Summary of Plant Operations and Maintenance during the reporting year",null,null,null,null,null,null,null,null,null,"Notes:"]
[]
["Major outages took place in units 1, 2 and 3 which included replacement of all boiler riser bends due to suspected cracks\nMinor outages took place on all three units once in the year\nExplosive cleaning took place on inputs 2 and 3 14 times in the year\n\nThere were 6 unplanned outages to repair grate damage totalling 330 hours\nThere were boiler tube leaks requiring shut down and repair on all units totalling 125 hours\nAll the above grate damage breakdowns were due to NOS cylinder explosions and the tube leaks were very likely to be caused by the explosions as well but it cannot be proven.\n\nThe repairs to the main tubing 'G1' were on-going throughout the year. It is hoped to be online early in 2025",null,null,null,null,null,null,null,null,null,"Include summary of key operational and/or maintenance activity undertaken in the year, such as any major component upgrades and/or replacements "]
[]
[]
[]
[]
[]
[]
[]
[]
[]
[]
[]
[]
[]
[]
[]
[]
[]
[]
[]
[]
[]
[]
[]
["Summary of Residue Handling for the reporting year"]
[]
["Incinerator bottom ash is separated and stored on site for collection by aggregate HGVs, which as loaded by crane before transporting the ash to a processing site which is operated by a third party. All metals  are left mixed with the IBA and removed from site for processing by a third party (Johnsons Aggregates, Derby), and the metal is now separated by them on their premises.\n\nAPCr is conveyed by the FGT system into storage silos. From there it is deposited into tankers (Lomas) for transportation to a third party processor (Augean).",null,null,null,null,null,null,null,null,null,"Include in here a summary of residue handling regimes and destinations "]
[]
[]
[]
[]
[]
[]
[]
[]
[]
[]
[]
[]
[]
[]
[]
[]
[]
[]
[]
[]
[]
[]
[{"$f":"+'Cover Page'!C39","v":2024},"Plant shut-downs"]
["Date","Reason for shut-down",null,null,null,null,null,null,null,null,"Provide a very brief reason for plant shut-down e.g. \"Shut-down prior to major outage\"; \"Emergency shut-down due to boiler tube leak\"\n\nThere is no need to include periods of hot-standby here (e.g. to clear feed chute hopper blockages).\n\nFor clinical waste incinerators which require regular shut-downs for boiler cleaning, there is no need to record these here. "]
["January","Planned minor outage unit 1"]
["March","Planned minor outage unit 2"]
["May","Planned minor outage unit 3"]
["June","Planned major outage unit 1"]
["September","Planned major outage unit 2"]
["November","Planned major outage unit 3"]
["January","Grate damage repairs unit 1"]
["June","Grate damage repairs unit 2"]
["July","Grate damage repairs unit 2"]
["September","Grate damage repairs unit 1"]
["September","Grate damage repairs unit 1"]
["October","Grate damage repairs unit 2"]
["January","Tube leak repairs Unit 2"]
["February","Tube leak repairs Unit 1"]
["June","Tube leak repairs Unit 3"]

{"sheet":"Perf. Form 1","index":5,"n_rows":54,"n_cols":10,"rows_kept":54,"cut":false,"hidden":false,"merged":[[47,0,47,1],[49,0,49,9],[50,0,51,9],[38,0,38,9],[39,0,40,9],[43,0,43,1],[43,2,43,9],[45,0,45,1],[46,0,46,1],[36,0,36,3],[36,4,36,5],[36,7,36,8],[37,0,37,3],[37,4,37,5],[37,7,37,8],[34,0,34,3],[34,4,34,5],[34,7,34,8],[35,0,35,3],[35,4,35,5],[35,7,35,8],[31,0,31,3],[31,7,31,8],[32,0,32,3],[32,4,32,5],[32,7,32,8],[33,0,33,3],[33,4,33,5],[33,7,33,8],[23,0,23,3],[23,4,23,5],[23,6,23,7],[23,8,23,9],[25,0,25,9],[26,0,28,9],[21,0,21,1],[21,2,21,3],[21,4,21,5],[21,6,21,7],[21,8,21,9],[22,0,22,3],[22,4,22,5],[22,6,22,7],[22,8,22,9],[19,0,19,1],[19,2,19,3],[19,4,19,5],[19,6,19,7],[19,8,19,9],[20,0,20,1],[20,2,20,3],[20,4,20,5],[20,6,20,7],[20,8,20,9],[17,0,17,1],[17,2,17,3],[17,4,17,5],[17,6,17,7],[17,8,17,9],[18,0,18,1],[18,2,18,3],[18,4,18,5],[18,6,18,7],[18,8,18,9],[15,0,15,1],[15,2,15,3],[15,4,15,5],[15,6,15,7],[15,8,15,9],[16,0,16,9],[13,0,13,1],[13,2,13,3],[13,4,13,5],[13,6,13,7],[13,8,13,9],[14,0,14,3],[14,4,14,5],[14,6,14,7],[14,8,14,9],[11,0,11,1],[11,2,11,3],[11,4,11,5],[11,6,11,7],[11,8,11,9],[12,0,12,1],[12,2,12,3],[12,4,12,5],[12,6,12,7],[12,8,12,9],[9,0,9,9],[10,0,10,1],[10,2,10,3],[10,4,10,5],[10,6,10,7],[10,8,10,9],[2,0,2,4],[2,6,2,8],[3,1,3,4],[5,3,5,4],[5,6,5,7],[8,0,8,1],[8,2,8,3],[8,4,8,5],[8,6,8,7],[8,8,8,9]]}
[{"$f":"+'Cover Page'!C39","v":2024}," Annual Reporting Performance Form 1"]
[]
[{"$f":"+'Cover Page'!B31","v":"Permit EPR/NP3739PD/v009"},null,null,null,null,"Operator: ",{"$f":"+'Cover Page'!B37","v":"CSWDC"}]
["Facility:",{"$f":"+'Cover Page'!B33:I33","v":"The Coventry and Solihull Waste Disposal Company Limited"},null,null,null,"Form:","Performance 1"]
[]
["Reporting  Period from: ",null,null,"2024-01-01",null,"to:","2024-12-31"]
[]
[{"$f":"+A1","v":2024},"Annual Reporting of Waste Disposal and Recovery"]
["Waste Description",null,"Disposal Route(s)",null,"Disposal Tonnes",null,"Recovery Tonnes",null,"% / tonne of waste incinerated"]
["1) Hazardous Wastes"]
["APC Residues",null,"Pretreatent and landfill",null,12268.64,null,null,null,{"$f":"IF((E11+G11)>0,(E11+G11)/'Operational Data'!$G$21, \"-\")","v":4.2093157302445582E-2}]
["IBA",null,null,null,null,null,null,null,{"$f":"IF((E12+G12)>0,(E12+G12)/'Operational Data'!$G$21, \"-\")","v":"-"}]
[null,null,null,null,null,null,null,null,{"$f":"IF((E13+G13)>0,(E13+G13)/'Operational Data'!$G$21, \"-\")","v":"-"}]
[null,null,null,null,null,null,null,null,{"$f":"IF((E14+G14)>0,(E14+G14)/'Operational Data'!$G$21, \"-\")","v":"-"}]
["Total Hazardous Waste",null,null,null,{"$f":"SUM(E11:F14)","v":12268.64},null,{"$f":"SUM(G11:H14)","v":0},null,{"$f":"IF((E15+G15)>0,(E15+G15)/'Operational Data'!$G$21, \"-\")","v":4.2093157302445582E-2}]
[]
["2) Non-Hazardous Wastes"]
["IBA",null,"Recovery",null,44211.93,null,null,null,{"$f":"IF((E18+G18)>0,(E18+G18)/'Operational Data'!$G$21, \"-\")","v":0.15168916229791674}]
["Ferrous Metal",null,"Recovery",null,4987.43,null,null,null,{"$f":"IF((E19+G19)>0,(E19+G19)/'Operational Data'!$G$21, \"-\")","v":1.7111650152334422E-2}]
["Process Water",null,"Disposal to foul sewer",null,58894,null,null,null,{"$f":"IF((E20+G20)>0,(E20+G20)/'Operational Data'!$G$21, \"-\")","v":0.2020626904180276}]
[null,null,null,null,null,null,null,null,{"$f":"IF((E21+G21)>0,(E21+G21)/'Operational Data'!$G$21, \"-\")","v":"-"}]
[null,null,null,null,null,null,null,null,{"$f":"IF((E22+G22)>0,(E22+G22)/'Operational Data'!$G$21, \"-\")","v":"-"}]
["Total Non-Hazardous Waste",null,null,null,{"$f":"SUM(E18:F22)","v":108093.36},null,{"$f":"SUM(G18:H22)","v":0},null,{"$f":"IF((E23+G23)>0,(E23+G23)/'Operational Data'!$G$21, \"-\")","v":0.37086350286827874}]
["TOTAL WASTE",null,null,null,{"$f":"+E23+E15","v":120362},null,{"$f":"+G23+G15","v":0},null,{"$f":"IF((E24+G24)>0,(E24+G24)/'Operational Data'!$G$21, \"-\")","v":0.41295666017072435}]
[]
["Operator’s comments :"]
[]
[]
[]
[]
[{"$f":"+A1","v":2024},"Annual Reporting of Water and Other Raw Material Usage"]
["Raw Material",null,null,null,"Usage",null,"Unit","Specific Usage",null,"Unit"]
["Mains Water",null,null,null,{"$f":"+'Operational Data'!G42","v":109859},null,"m3",{"$f":"IF(E33>0,E33/'Operational Data'!$G$21,\"-\")","v":0.37692133505338565},null,"m3/te"]
["Total Water",null,null,null,{"$f":"+'Operational Data'!G43+'Operational Data'!G42","v":111534},null,"m3",{"$f":"IF(E34>0,E34/'Operational Data'!$G$21,\"-\")","v":0.38266818543628028},null,"m3/te"]
["Urea / Ammonia",null,null,null,{"$f":"+'Operational Data'!G44","v":1354},null,"kg",{"$f":"IF(E35>0,E35/'Operational Data'!$G$21,\"-\")","v":4.6455136826503447E-3},null,"kg/te"]
["Activated Carbon",null,null,null,{"$f":"+'Operational Data'!G46","v":93.199999999999989},null,"kg",{"$f":"IF(E36>0,E36/'Operational Data'!$G$21,\"-\")","v":3.1976504817061454E-4},null,"kg/te"]
["Lime / hydrated lime / Sodium Bicarb.",null,null,null,{"$f":"+'Operational Data'!G47","v":6010},null,"kg",{"$f":"IF(E37>0,E37/'Operational Data'!$G$21,\"-\")","v":2.0620042269371173E-2},null,"kg/te"]
[]
["Operator’s comments :"]
[]
[]
[]
[{"$f":"+A31","v":2024},"Annual Reporting of other performance indicators "]
["Parameter",null,"Results by Line"]
[null,null,"A1","A2","A3","A4","A5",null,"Turbine 1","Turbine 2"]
["Operating hours for the year, hours",null,{"$f":"'Operational Data'!G53","v":7738},{"$f":"'Operational Data'!G54","v":7892},{"$f":"'Operational Data'!G55","v":8044}]
["Number of periods of abnormal operation, qty.",null,0,0,0]
["Cumulative hours of abnormal operation for this year, hours",null,0,0,0]
[]
["Operator’s comments :"]
[]
[]
[]
["Signed: ","M Schilling",null,null,null,null,"Date:","2025-02-07"]

{"sheet":"Energy Form 1","index":6,"n_rows":29,"n_cols":8,"rows_kept":29,"cut":false,"hidden":false,"merged":[[15,0,15,2],[15,3,15,4],[15,6,15,8],[17,0,17,8],[18,0,24,8],[13,0,13,2],[13,3,13,4],[13,6,13,8],[14,0,14,2],[14,3,14,4],[14,6,14,8],[11,0,11,2],[11,3,11,4],[11,6,11,8],[12,0,12,2],[12,3,12,4],[12,6,12,8],[9,0,9,2],[9,3,9,4],[9,6,9,8],[10,0,10,2],[10,3,10,4],[10,6,10,8],[2,6,2,8],[4,1,4,4],[6,3,6,4],[6,6,6,7],[8,0,8,2],[8,3,8,4],[8,6,8,8]]}
[{"$f":"+'Cover Page'!C39","v":2024}," Annual Reporting of Energy Usage/Export"]
[]
[{"$f":"+'Cover Page'!B31","v":"Permit EPR/NP3739PD/v009"},null,null,null,null,"Operator: ",{"$f":"+'Cover Page'!B37","v":"CSWDC"}]
[]
["Facility:",{"$f":"+'Cover Page'!B33:I33","v":"The Coventry and Solihull Waste Disposal Company Limited"},null,null,null,"Form:","Energy 1"]
[]
["Reporting  Period from: ",null,null,{"$f":"+'Perf. Form 1'!D6:E6","v":"2024-01-01"},null,"to:",{"$f":"+'Perf. Form 1'!G6:H6","v":"2024-12-31"}]
[]
["Energy Source",null,null,"Energy Usage",null,"Unit","Specific Usage (KWh/tonne incinerated"]
["Electricity Produced",null,null,{"$f":"+'Operational Data'!G24","v":38055.46},null,"MWh",{"$f":"+'Operational Data'!H24","v":130.56658798342161}]
["Electricity Imported   ",null,null,{"$f":"+'Operational Data'!G27","v":100},null,"MWh",{"$f":"+'Operational Data'!H27","v":0.34309554524744051}]
["Electricity Exported",null,null,{"$f":"+'Operational Data'!G25","v":18177},null,"MWh",{"$f":"+'Operational Data'!H25","v":62.364477259627265}]
["Gas Oil",null,null,39214,null,"tonnes"]
["Steam/hot water exported",null,null,15593,null,"MWh",{"$f":"+'Operational Data'!H30","v":53.502319325885871}]
[]
[]
[]
["Operator’s comments :"]
["Please note that the main turbine 'G1' was off line all year due to a catastrophic failure in 2023, therefore the amounts of power produced and exported will be much lower that would normally be expected for the plant capacity"]
[]
[]
[]
[]
[]
[]
[]
[]
[]
["Signed: ","M Schilling",null,null,null,null,"Date:","2025-02-07"]

{"sheet":"Permit Compliance","index":7,"n_rows":32,"n_cols":12,"rows_kept":32,"cut":false,"hidden":false,"merged":[[24,1,24,2],[25,1,25,2],[26,0,26,8],[19,7,19,8],[19,1,19,2],[19,3,19,5],[21,3,21,5],[22,3,22,5],[23,3,23,5],[24,3,24,5],[25,3,25,5],[21,1,21,2],[8,11,20,11],[28,0,28,10],[18,0,18,10],[33,1,33,3],[33,4,33,6],[33,7,33,9],[29,1,29,3],[29,4,29,6],[29,7,29,9],[30,1,30,3],[30,4,30,6],[30,7,30,9],[22,1,22,2],[23,1,23,2],[14,0,14,1],[14,2,14,4],[34,1,34,3],[34,4,34,6],[34,7,34,9],[31,1,31,3],[31,4,31,6],[31,7,31,9],[32,1,32,3],[32,4,32,6],[32,7,32,9],[14,5,14,8],[15,0,15,1],[16,2,16,4],[16,5,16,8],[15,2,15,4],[15,5,15,8],[16,0,16,1],[7,0,7,1],[7,2,7,8],[8,0,8,1],[8,2,8,4],[8,5,8,8],[35,4,35,8],[9,0,9,1],[9,2,9,4],[9,5,9,8],[10,0,10,1],[10,2,10,4],[10,5,10,8],[11,0,11,1],[11,2,11,4],[11,5,11,8],[12,0,12,1],[12,2,12,4],[12,5,12,8],[13,0,13,1],[13,2,13,4],[13,5,13,8]]}
[{"$f":"+'Cover Page'!$B$29","v":"Annual Performance Report 2024"},null,null,null,{"$f":"+'Cover Page'!$B$33","v":"The Coventry and Solihull Waste Disposal Company Limited"}]
[]
["Summary of Permit Compliance"]
[]
["Compliance with permit limits for continuously monitored pollutants"]
[]
["The plant met its emission limits as shown in the table below:"]
["Substance",null,"Percentage time compliant during operationNote 1",null,null,null,null,null,null,null,null,"Notes:"]
[null,null,"Half-hourly limit",null,null,"Daily limit",null,null,null,null,null,"Note 1: Please report to 2 decimal places, i.e. xx.xx%\n\nNote 2: Please enter into this table any permit non-compliances that the EA has given a CCS score for. Please also enter any other non-compliances which you have notified to the EA (e.g. ELV exceedances) but which have not yet been assessed by the EA. There is no need to enter any notifications which were subsequently assessed by the EA not to be permit breaches.  \n\nNote 3: Please enter information here (rather than just referencing the notifications that were sent to the EA) including where relevant the incineration line reference, pollutant and value of the measured result for any ELV exceedances.   \n\n"]
["Particulates",null,1,null,null,1]
["Oxides of nitrogen",null,1,null,null,1]
["Sulphur dioxide",null,1,null,null,1]
["Carbon monoxide",null,"100% 95% of 10-min averages",null,null,1]
["Total organic carbon",null,1,null,null,1]
["Hydrogen chloride",null,1,null,null,1]
["Hydrogen fluoride",null,1,null,null,1]
["Ammonia",null,1,null,null,1]
[]
["Summary of non-compliances under the permit Note 2"]
["Date","Summary of non-compliance Note 3",null,"Reason ",null,null,"Measures taken to prevent reoccurrence","CCS score if applicable*"]
[null,null,null,null,null,null,null,"Impact","Root cause"]
[]
[]
[]
[]
[]
["*If the Environment Agency (EA) has given a Compliance Classification Scheme (CCS) score due to a permit non-compliance it should be entered here (CCS4 = No impact; CCS3 = Minor impact; CCS2 = Significant impact; CCS1 = Major impact). If the EA has not yet assessed a non-compliance which you have notified to them, these columns should be left blank. Enter N/A if no score was given for the root cause.  "]
[]
["Summary of any complaints received and actions to taken to resolve them."]
["Date","Summary of complaint [including Line/Reference]",null,null,"Reason (including whether substantiated by the operator or the EA)",null,null,"Measures taken to prevent reoccurrence"]
["2024-06-07","Noise from pneumatic systems reported by neighbours",null,null,"Substaintiated, new air systems needed enclosures fitting",null,null,"Enclosures fitted"]
["2024-07-03","Noise from hedge trimming tractor reported by neighbours",null,null,"Substantiated, hedge trimming was done in the evening and not communicated to residents",null,null,"Further works will be done after a letter drop advising of possible short term noise"]

{"sheet":"Improvements","index":8,"n_rows":39,"n_cols":5,"rows_kept":39,"cut":false,"hidden":false,"merged":[[37,0,37,8],[38,0,47,8],[4,0,4,8],[5,0,13,8],[15,0,15,8],[16,0,24,8],[26,0,26,8],[27,0,35,8]]}
[{"$f":"+'Cover Page'!$B$29","v":"Annual Performance Report 2024"},null,null,null,{"$f":"+'Cover Page'!$B$33","v":"The Coventry and Solihull Waste Disposal Company Limited"}]
[]
["Summary of Plant Improvements"]
[]
["Summary of any efficiency improvements that have been completed within the year."]
["On-going review and assessment of the abatement dosing chemicals to ensure dosing of consumables is balanced with emissions levels"]
[]
[]
[]
[]
[]
[]
[]
[]
[]
["Summary of any permit improvement conditions that have been completed within the year and the resulting environmental benefits."]
["Improvement Condition 1 (IC1) – this has been extended by the Environment Agency (EA) to 30/05/25 – it is an IC on NOx improvement and requires further time.\n\nEA now plan to instead start auditing OTNOC Management plans (including start-up and shut-down definitions) from May 2025 onwards. \nThe EA are not asking operators to formally submit their plans to them for review, but the local site officer will ask the operator to send them a copy ahead of carrying out the audit.  CSWDC have a plan and it’s in the process of being finalising ready for audit.\n"]
[]
[]
[]
[]
[]
[]
[]
[]
[]
["Summary of any changes to the plant or operating techniques which required a variation to the permit and a summary of the resulting environmental impact."]
[]
[]
[]
[]
[]
[]
[]
[]
[]
[]
["Summary of any other improvements made to the plant or planned to be made and a summary of the resulting environmental benefits."]
["CSWDC has identified and will consider the following possible technical solutions to provide additional abatement for emissions of NOx and NH3, as follows:\n\n• Undertake further optimisation of the SNCR and combustion system by installing improved temperature roof measurement, ammonia injection and optimisation with Martin;\n• Installation and commission an FGR system; or Combustion optimisation with Martin GMBH - this will involve changes to the boiler.\n\nAll of these options can only be undertaken during a period of extended shutdown, and it is not feasible to implement the improvement across all three lines at the same time. \n\nFGT filter bags renewed as planned on Unit 1 to ensure on-going particulate emissions control\n"]

{"sheet":"Public Liasion","index":9,"n_rows":29,"n_cols":5,"rows_kept":29,"cut":false,"hidden":false,"merged":[[23,0,24,1],[23,2,24,8],[25,0,26,1],[25,2,26,8],[28,0,28,8],[17,0,18,1],[17,2,18,8],[19,0,20,1],[19,2,20,8],[21,0,22,1],[21,2,22,8],[16,0,16,1],[16,2,16,8],[5,0,5,1],[5,2,5,8],[6,0,7,1],[6,2,7,8],[8,0,9,1],[8,2,9,8],[10,0,11,1],[10,2,11,8],[12,0,13,1],[12,2,13,8],[15,0,15,8]]}
[{"$f":"+'Cover Page'!$B$29","v":"Annual Performance Report 2024"},null,null,null,{"$f":"+'Cover Page'!$B$33","v":"The Coventry and Solihull Waste Disposal Company Limited"}]
[]
["Details of Public & Stakeholder Liaison"]
[]
["Summary of events held during the reporting year."]
["Date",null,"Description"]
["2024-03-21",null,"Local residents association site visit and plant tour"]
[]
["2024-04-24",null,"Local residents association site visit and plant tour"]
[]
["2024-07-23",null,"Site visit and tour by the Heatline owners and local university to assess potential for utilising available heat output"]
[]
[]
[]
[]
["List of events planned for next year"]
["Date",null,"Description"]
[]
[]
[]
[]
[]
[]
[]
[]
[]
[]
[]
["If you wish to be involved in the public liaison programme, please contact _________________"]

{"sheet":"CO2 N2O","index":10,"n_rows":25,"n_cols":10,"rows_kept":25,"cut":false,"hidden":false,"merged":[[22,2,22,3],[25,1,25,3],[16,2,16,3],[4,0,4,3],[9,0,9,3],[17,0,17,3],[13,0,13,3],[12,0,12,1],[8,2,8,3],[11,2,11,3],[19,2,19,3]]}
[{"$f":"+'Cover Page'!$B$29","v":"Annual Performance Report 2024"},null,{"$f":"+'Cover Page'!$B$33","v":"The Coventry and Solihull Waste Disposal Company Limited"}]
[]
["Carbon dioxide emissions and biogenic content of waste inputs",null,null,null,null,"Notes:"]
[]
["Carbon dioxide emissions (all types of plant)"]
[null,"Annual mass of carbon dioxide released","tonnes ",273887]
[null,"Annual mass of carbon dioxide released per tonne of waste burned","t CO2 / t waste ","0.9397"]
[null,"Annual mass of carbon dioxide released per MWh of energy exported","t CO2 / MWh export ","15.07*",null,"*note - G1 turbine off-line all year due to failure May 2023"]
[null,"Description of how annual carbon dioxide mass emission has been calculated. \nSee Note 1","CEMs data used to record CO2 and flow with running hours to produce a mass value for the year. Please note that G1 the main turbine was off for the whole of 2024 awaiting parts and refurb following a major failure in May-23. Annual mass of carbon dioxide is then higher in 2024 at 15.07 however it was only 5.33 in 2023 . This is due to only have G2 available. To note we are still supplying majority of in house electricity to ourselves BRING energy and Sherbourne next door and supplying district heating to Coventry City Centre. When G1 returns to service this figure will normalise.",null,null,"Note 1: All permits require operators to continuously monitor CO2 to EN14181 and flow to BS EN 16911-2 (unless otherwise agreed in writing). Operators must therefore use the results from these instruments to calculate their annual CO2 emissions. Where an operator does not have a flow meter calibrated to BS EN 16911-2, the averaged flow measurement from that year's periodic monitoring can be used instead. If the plant does not have calibrated CO2 CEMS, a suitably justified emissions factor can be used."]
["Nitrous oxide emissions (only plants which use ammonia or urea to abate NOx emissions)"]
[null,"Annual mass emissions of nitrous oxide","tonnes N2O",7.2]
[null,"Description of how annual nitrous oxide mass emission has been calculated\nSee Note 2","CEMs data used to record N2O and flow with running hours to produce a mass value for the year",null,null,"Note 2: All permits require operators to continuously monitor N2O to EN14181 and flow to BS EN 16911-2, unless otherwise agreed in writing. Operators must therefore use the results from these instruments to calculate their annual N2O emissions. Where an operator does not have a flow meter calibrated to BS EN 16911-2, the averaged flow measurement from periodic monitoring can be used instead. If the plant does not have calibrated N2O CEMS, data from periodic monitoring or a suitably justified emissions factor can be used instead."]
["Total annual carbon dioxide + nitrous oxide emissions. \nSee Note 3. ",null,"tonnes CO2e",275742,null,"Note 3: Total annual carbon dioxide and nitrous oxide emissions reported as carbon dioxide equivalent where 1 tonne nitrous oxide is equivalent to 265 tonnes carbon dioxide.",null,7,265,{"$f":"+D6","v":273887}]
["Biogenic CO2 emissions (See Note 4)",null,null,null,null,"Note 4: Only plants combusting residual municipal waste, refuse derived fuel or solid recovered fuel need complete this section. ",null,null,{"$f":"SUM(H13*I13)","v":1855}]
[null,"Percentage of total carbon dioxide emissions arising from biogenic waste","%",0.6,null,null,null,null,null,{"$f":"SUM(J13,I14)","v":275742}]
[null,"No. of measurements undertaken","Number",12]
[null,"Description of how percentage biogenic carbon dioxide emissions have been measured or calculated.\nSee Note 5","C14 sampling on common exit duct",null,null,"Note 5: The results from C14 sampling should be used if this is carried out at the plant (either via an installed sampler or from spot samples).  \nOtherwise, as an approximation (and in lieu of any more accurate metrics which may be developed in future), the measured or estimated biogenic fraction by net calorific value (see Note 6) can be assumed to be the same as the biogenic CO2 fraction of the total CO2 emissions from the plant. "]
["Biogenic fraction of waste feedstock (See Note 4)"]
[null,"Yearly average biogenic percentage of the waste by net calorific value (NCV)","%",0.55000000000000004]
[null,"Description of how biogenic percentage (by NCV) has been calculated or estimated. \nSee Note 6","Using the Fichtner calculation/formula",null,null,"Note 6: If C14 sampling is carried out at the plant, the methodology set out in the embedded document entitled \"Renewable Energy Association Energy Content of Fuels - Description of Method\" embedded below can be used to calculate the biogenic percentage by net calorific value. Otherwise, data from waste sampling or BIOMA software can be used; or if none of these are available, an estimated figure with justification or a figure assumed on the basis of up-to-date industry data can be used. "]
[null,"Yearly average biogenic percentage of the waste by mass","%",0.60019999999999996]
[null,"If waste sampling undertaken, no. of samples used to ascertain average biogenic percentages above","Number",12]
[null,"Description of how biogenic percentage (by mass) has been calculated or estimated. \nSee Note 7","Waste sampling data",null,null,"Note 7: Where available, data from waste sampling should be used; otherwise, an estimated figure with justification can be used, or a figure assumed on the basis of up-to-date industry data. "]
[]
[null,"Comments:"]

{"sheet":"Residue Quality ","index":11,"n_rows":36,"n_cols":6,"rows_kept":36,"cut":false,"hidden":false,"merged":[[36,0,41,6],[32,3,32,4],[35,0,35,6],[27,0,28,1],[29,0,29,1],[30,0,30,1],[31,0,31,1],[32,0,32,1],[29,3,29,4],[30,3,30,4],[29,5,29,6],[30,5,30,6],[31,5,31,6],[32,5,32,6],[33,0,33,6],[20,0,21,1],[20,2,21,6],[22,0,23,1],[22,2,23,6],[31,3,31,4],[27,2,28,2],[28,3,28,4],[28,5,28,6],[27,3,27,6],[26,0,26,6],[5,0,6,6],[7,0,8,6],[9,0,10,6],[14,0,15,1],[14,2,15,6],[16,0,17,1],[16,2,17,6],[18,0,19,1],[18,2,19,6],[12,0,12,6],[13,0,13,1],[13,2,13,6]]}
[{"$f":"+'Cover Page'!$B$29","v":"Annual Performance Report 2024"},null,null,null,{"$f":"+'Cover Page'!$B$33","v":"The Coventry and Solihull Waste Disposal Company Limited"}]
[]
["Residue Quality Monitoring Requirements"]
[]
["Summary of monitoring undertaken and compliance"]
["Monthly IBA samples are collected and analysed by Element. All results within the limits. LOI analysis undertaken quarterly. "]
[]
[]
[]
[]
[]
[]
["Commentary on any specific events"]
["Date & Event",null,"Description"]
["2024-12-01",null,"IBA sample collection and coning and quartering undertaken by Element in front of EA witnesses x3 as part of an audit. All observations were compliant"]
[]
[]
[]
[]
[]
[]
[]
[]
[]
[]
[]
["Residue Quality Monitoring Results"]
["Parameter (unit) ",null,"Limit*","Normal Operation "]
[null,null,null,"Bottom ash  ",null,"APC Residues"]
["Loss on Ignition (average %)",null,"<5%",1.78E-2]
["Total Organic Carbon (average %)",null,"<3%","n/a"]
["No. of Assessments Undertaken",null,"---","4 per unit"]
["No. of Hazardous Results",null,"---",0]
["* The permit will specify a limit of either 5% loss on ignition or 3% total organic carbon. If both are measured anyway, please enter the results here, even where the limit does not apply. "]
[]
["Comments :"]

{"sheet":"Water","index":12,"n_rows":24,"n_cols":9,"rows_kept":24,"cut":false,"hidden":false,"merged":[[29,0,29,2],[29,3,29,4],[26,0,26,2],[26,3,26,4],[27,0,27,2],[27,3,27,4],[28,0,28,2],[28,3,28,4],[23,0,23,2],[23,3,23,4],[24,0,24,2],[24,3,24,4],[25,0,25,2],[25,3,25,4],[21,0,21,8],[22,0,22,2],[22,3,22,4],[14,0,15,1],[14,2,15,8],[16,0,17,1],[16,2,17,8],[18,0,19,1],[18,2,19,8],[5,0,6,8],[7,0,8,8],[9,0,10,8],[12,0,12,8],[13,0,13,1],[13,2,13,8]]}
[{"$f":"+'Cover Page'!$B$29","v":"Annual Performance Report 2024"},null,null,null,{"$f":"+'Cover Page'!$B$33","v":"The Coventry and Solihull Waste Disposal Company Limited"}]
[]
["Emissions to Water"]
[]
["Summary of monitoring undertaken and compliance"]
["Weekly ph measurement taken of ash quench effluent before dispsoal to sewer by water treament contractors"]
[]
["Effluent qualities monitored by STW"]
[]
[]
[]
[]
["Commentary on any specific events"]
["Date & Event",null,"Description"]
[]
[]
[]
[]
[]
[]
[]
["Emissions to Water / Sewer"]
["Parameter",null,null,"Monitoring Frequency",null,"Limit","Target","Max.","Average"]
["PH",null,null,"weekly",null,12,9,10.1,8.1999999999999993]

{"sheet":"Air (periodic)","index":13,"n_rows":39,"n_cols":11,"rows_kept":39,"cut":false,"hidden":false,"merged":[[13,10,14,12],[15,10,16,10],[15,11,16,11],[15,12,16,12],[18,3,18,4],[13,3,13,4],[14,3,14,4],[15,3,15,4],[16,3,16,4],[17,3,17,4],[21,3,21,4],[22,3,22,4],[23,3,23,4],[24,3,24,4],[31,3,31,4],[25,3,25,4],[26,3,26,4],[28,3,28,4],[38,0,38,9],[19,0,19,1],[20,0,20,1],[21,0,21,1],[34,3,34,4],[35,3,35,4],[33,0,33,1],[34,0,34,1],[35,0,35,1],[36,0,36,1],[24,0,24,1],[32,3,32,4],[27,3,27,4],[33,3,33,4],[19,3,19,4],[20,3,20,4],[39,0,40,9],[25,0,25,1],[26,0,26,1],[22,0,22,1],[23,0,23,1],[37,0,37,1],[27,0,27,1],[28,0,28,1],[29,0,29,1],[30,0,30,1],[31,0,31,1],[32,0,32,1],[37,3,37,4],[29,3,29,4],[30,3,30,4],[36,3,36,4],[16,0,16,1],[17,0,17,1],[18,0,18,1],[13,0,13,1],[14,0,14,1],[15,0,15,1],[12,0,12,1],[11,3,11,4],[12,3,12,4],[9,0,10,1],[9,5,9,9],[9,3,10,4],[9,2,10,2],[5,10,8,13],[9,10,11,13],[8,0,8,9],[5,0,6,9],[11,0,11,1]]}
[{"$f":"+'Cover Page'!$B$29","v":"Annual Performance Report 2024"},null,null,null,{"$f":"+'Cover Page'!$B$33","v":"The Coventry and Solihull Waste Disposal Company Limited"}]
[]
["Emissions to Air (periodically monitored)"]
[]
["Summary of monitoring undertaken, standards used and compliance",null,null,null,null,null,null,null,null,null,"Notes:"]
[null,null,null,null,null,null,null,null,null,null,"Template may require adjustment for any bespoke monitoring requirements of permit - please also check that all default ELV values, reference periods and the stated oxygen reference value match those for your plant, and edit if necessary!"]
[]
[]
["Results of emissions to air that are periodically monitored - oxygen reference 11% "]
["Substance",null,"Ref. Period","Emission Limit Value",null,"Average",null,null,null,null,"User to add additional tables as necessary, depending on whether quarterly or bi-annual reporting is required for the compliance year"]
[null,null,null,null,null,"A1","A2","A3","A4","A5"]
["Hydrogen fluoride",null,"1 hr","1 mg/m3",null,0.105,0.11499999999999999,5.4000000000000006E-2]
["Cd and Tl and their compounds",null,"0.5-8hrs","0.02 mg/m3",null,8.4000000000000003E-4,8.0000000000000004E-4,1.6000000000000001E-3]
["Hg and its compounds",null,"0.5-8hrs","0.02 mg/m3",null,5.9000000000000003E-4,3.3500000000000001E-4,7.6500000000000005E-4]
["Sb, As, Pb, Cr, Co, Cu, Mn, Ni, V and their compounds",null,"0.5-8hrs","0.3 mg/m3",null,3.4500000000000003E-2,3.0599999999999999E-2,1.15E-2]
["Dioxins & Furans (I-TEQ)",null,"6-8hrs","0.06 ng/m3",null,2.5950000000000001E-2,4.45E-3,2.15E-3]
["PCBs (WHO-TEQ Humans / Mammals)",null,"6-8hrs","None set ng/m3",null,3.5149999999999999E-3,2.1910000000000002E-3,1.9249999999999999E-4]
["PCBs (WHO-TEQ Fish)",null,"6-8hrs","None set ng/m3",null,7.5499999999999992E-5,1.4999999999999999E-5,1.9249999999999999E-4]
["PCBs (WHO-TEQ Birds)",null,"6-8hrs","None set ng/m3",null,2.8650000000000004E-3,9.4650000000000008E-4,6.8199999999999999E-4]
["Dioxins & Furans (WHO-TEQ Humans / Mammals)",null,"6-8hrs","None set ng/m3",null,2.4399999999999998E-2,4.3999999999999994E-3,1.8E-3]
["Dioxins & Furans (WHO-TEQ Fish)",null,"6-8hrs","None set ng/m3",null,2.8250000000000001E-2,4.7499999999999999E-3,1.9499999999999999E-3]
["Dioxins & Furans (WHO-TEQ Birds)",null,"6-8hrs","None set ng/m3",null,4.9199999999999994E-2,8.6999999999999994E-3,4.7500000000000007E-3]
["Anthanthrene",null,"6-8hrs","None set µg/m3",null,1.3500000000000001E-3,1.2999999999999999E-3,1.5499999999999999E-3]
["Benzo(a)anthracene",null,"6-8hrs","None set µg/m3",null,3.1899999999999998E-2,2.775E-2,2.4899999999999999E-2]
["Benzo(a)pyrene",null,"6-8hrs","None set µg/m3",null,4.0499999999999998E-3,4.0000000000000001E-3,3.9499999999999995E-3]
["Benzo(b)fluoranthene",null,"6-8hrs","None set µg/m3",null,1.115E-2,8.5500000000000003E-3,8.0499999999999999E-3]
["Benzo(b)naptho(2,1-d) thiophene",null,"6-8hrs","None set µg/m3",null,1.025E-2,9.1000000000000004E-3,8.199999999999999E-3]
["Benzo(c)phenanthrene",null,"6-8hrs","None set µg/m3",null,9.5499999999999995E-3,8.6E-3,7.1999999999999998E-3]
["Benzo(ghi)perylene",null,"6-8hrs","None set µg/m3",null,2E-3,2.1999999999999997E-3,1.7000000000000001E-3]
["Benzo(k)fluoranthene",null,"6-8hrs","None set µg/m3",null,5.2499999999999995E-3,3.8999999999999998E-3,3.5999999999999999E-3]
["Cholanthrene",null,"6-8hrs","None set µg/m3",null,1.3500000000000001E-3,1.2999999999999999E-3,1.5499999999999999E-3]
["Chrysene",null,"6-8hrs","None set µg/m3",null,3.27E-2,2.69E-2,2.435E-2]
["Cyclopenta(cd)pyrene",null,"6-8hrs","None set µg/m3",null,1.3500000000000001E-3,2.8500000000000001E-3,1.6300000000000002E-2]
["Dibenzo(ai)pyrene",null,"6-8hrs","None set µg/m3",null,1.3500000000000001E-3,1.2999999999999999E-3,1.5499999999999999E-3]
["Dibenzo(ah)anthracene",null,"6-8hrs","None set µg/m3",null,1.3500000000000001E-3,1.2999999999999999E-3,1.5499999999999999E-3]
["Fluoranthene",null,"6-8hrs","None set µg/m3",null,0.99669999999999992,0.90449999999999997,0.75279999999999991]
["Indeno(123-cd) pyrene",null,"6-8hrs","None set µg/m3",null,2.1000000000000003E-3,1.7000000000000001E-3,1.8500000000000001E-3]
["Naphthalene",null,"6-8hrs","None set µg/m3",null,0.65229999999999999,0.75119999999999998,4.3104500000000003]
["Comments :"]

{"sheet":"Air (CEMS)","index":14,"n_rows":29,"n_cols":14,"rows_kept":29,"cut":false,"hidden":false,"merged":[[29,0,30,12],[13,0,14,0],[5,0,6,12],[7,0,8,12],[10,0,10,12],[11,0,12,0],[11,2,12,2],[11,1,12,1],[11,3,11,4],[11,5,11,6],[11,7,11,8],[11,9,11,10],[11,11,11,12],[14,13,15,13],[14,14,15,14],[14,15,15,15],[12,13,13,15],[27,0,27,12]]}
[{"$f":"+'Cover Page'!$B$29","v":"Annual Performance Report 2024"},null,null,null,null,null,null,null,{"$f":"+'Cover Page'!$B$33","v":"The Coventry and Solihull Waste Disposal Company Limited"}]
[]
["Emissions to Air (continuously monitored)"]
[null,null,null,null,null,null,null,null,null,null,null,null,null,"Notes:"]
["Summary of monitoring undertaken, standards used and compliance",null,null,null,null,null,null,null,null,null,null,null,null,"Template may require adjustment for any bespoke monitoring requirements of permit"]
[null,null,null,null,null,null,null,null,null,null,null,null,null,"Please check that all default ELV values match those for your plant and edit if necessary!"]
[null,null,null,null,null,null,null,null,null,null,null,null,null,"Report to 1 decimal place"]
[]
[]
[]
["Results of emissions to air that are continuously monitored (maximum and average values for each line) - oxygen reference 11%"]
["Substance","Reference Period","Emission Limit Value","A1",null,"A2",null,"A3",null,"A4",null,"A5"]
[null,null,null,"Max.","Avg.","Max.","Avg.","Max.","Avg.","Max.","Avg.","Max.","Avg."]
["Oxides of nitrogen","Daily mean","180 mg/m3 ",{"$f":"NOx!O19","v":177.98},{"$f":"NOx!N19","v":164.22583333333336},{"$f":"NOx!O34","v":178.21},{"$f":"NOx!N34","v":164.875},{"$f":"NOx!O49","v":177.61},{"$f":"NOx!N49","v":165.09333333333333}]
[null,"½ hourly mean","400 mg/m3 ",{"$f":"NOx!M19","v":309.70999999999998},{"$f":"NOx!L19","v":164.06000000000003},{"$f":"NOx!M34","v":307.62},{"$f":"NOx!L34","v":164.72},{"$f":"NOx!M49","v":287.98},{"$f":"NOx!L49","v":165.02}]
["Particulates","Daily mean","5 mg/m3",{"$f":"Particulates!O19","v":4.08},{"$f":"Particulates!N19","v":1.2108333333333332},{"$f":"Particulates!O34","v":1.03},{"$f":"Particulates!N34","v":0.46583333333333332},{"$f":"Particulates!O49","v":0.42},{"$f":"Particulates!N49","v":0.34249999999999997}]
[null,"½ hourly mean","30 mg/m3 ",{"$f":"Particulates!M19","v":16.3},{"$f":"Particulates!L19","v":1.2158333333333333},{"$f":"Particulates!M34","v":3.51},{"$f":"Particulates!L34","v":0.47000000000000003},{"$f":"Particulates!M49","v":2.3199999999999998},{"$f":"Particulates!L49","v":0.34416666666666657}]
["Total Organic Carbon ","Daily mean","10 mg/m3 ",{"$f":"TOC!O19","v":1.51},{"$f":"TOC!N19","v":0.91833333333333345},{"$f":"TOC!O34","v":1.31},{"$f":"TOC!N34","v":0.40999999999999992},{"$f":"TOC!O49","v":1.61},{"$f":"TOC!N49","v":0.75499999999999989}]
[null,"½ hourly mean","20 mg/m3 ",{"$f":"TOC!M19","v":8.86},{"$f":"TOC!L19","v":0.92083333333333339},{"$f":"TOC!M34","v":6.61},{"$f":"TOC!L34","v":0.41749999999999998},{"$f":"TOC!M49","v":11.32},{"$f":"TOC!L49","v":0.75083333333333335}]
["Hydrogen chloride ","Daily mean","8 mg/m3 ",{"$f":"HCl!O19","v":3.89},{"$f":"HCl!N19","v":1.4116666666666668},{"$f":"HCl!O34","v":1.52},{"$f":"HCl!N34","v":0.41499999999999987},{"$f":"HCl!O49","v":2.77},{"$f":"HCl!N49","v":1.3900000000000003}]
[null,"½ hourly mean","60 mg/m3 ",{"$f":"HCl!M19","v":13.93},{"$f":"HCl!L19","v":1.41},{"$f":"HCl!M34","v":25.51},{"$f":"HCl!L34","v":0.40833333333333338},{"$f":"HCl!M49","v":6.47},{"$f":"HCl!L49","v":1.3866666666666667}]
["Sulphur dioxide","Daily mean","40 mg/m3 ",{"$f":"'SO2'!O19","v":39.020000000000003},{"$f":"'SO2'!N19","v":33.158333333333339},{"$f":"'SO2'!O34","v":37.36},{"$f":"'SO2'!N34","v":30.810833333333335},{"$f":"'SO2'!O49","v":34.99},{"$f":"'SO2'!N49","v":27.644166666666667}]
[null,"½ hourly mean","200 mg/m3 ",{"$f":"'SO2'!M19","v":166.14},{"$f":"'SO2'!L19","v":33.01},{"$f":"'SO2'!M34","v":170.6},{"$f":"'SO2'!L34","v":30.62},{"$f":"'SO2'!M49","v":118.28},{"$f":"'SO2'!L49","v":27.487500000000001}]
["Carbon monoxide ","Daily mean","50 mg/m3 ",{"$f":"'CO 95% 10 min'!Q19","v":24.42},{"$f":"'CO 95% 10 min'!P19","v":16.93},{"$f":"'CO 95% 10 min'!Q34","v":33.68},{"$f":"'CO 95% 10 min'!P34","v":17.11},{"$f":"'CO 95% 10 min'!Q49","v":31.05},{"$f":"'CO 95% 10 min'!P49","v":22.59}]
[null,"½ hourly mean *","100 mg/m3 *"]
[null,"95%ile 10-min avg *","150 mg/m3 *",{"$f":"'CO 95% 10 min'!M19","v":67.39},{"$f":"'CO 95% 10 min'!N19","v":16.93},{"$f":"'CO 95% 10 min'!M34","v":94.67},{"$f":"'CO 95% 10 min'!N34","v":16.89},{"$f":"'CO 95% 10 min'!M49","v":64.7},{"$f":"'CO 95% 10 min'!N49","v":22.6}]
[" Ammonia","Daily mean","15 mg/m3 ",{"$f":"'NH3'!O19","v":14.11},{"$f":"'NH3'!N19","v":8.6849999999999987},{"$f":"'NH3'!O34","v":14.12},{"$f":"'NH3'!N34","v":9.8925000000000001},{"$f":"'NH3'!O49","v":13.51},{"$f":"'NH3'!N49","v":9.5183333333333326}]
["* = delete as appropriate, depending on whether your plant has half-hourly or 10-min CO ELVs\n"]
["Comments :"]

{"sheet":"HCl","index":15,"n_rows":79,"n_cols":17,"rows_kept":79,"cut":false,"hidden":false,"merged":[[12,16,15,18],[51,9,63,9],[66,9,78,9],[4,9,4,14],[4,1,4,3],[4,4,4,6],[48,0,51,6],[47,0,47,6],[6,9,18,9],[21,9,33,9],[36,9,48,9],[3,16,7,18],[9,16,11,18],[18,4,18,6]]}
[{"$f":"+'Cover Page'!$B$29","v":"Annual Performance Report 2024"},null,null,null,{"$f":"+'Cover Page'!$B$33","v":"The Coventry and Solihull Waste Disposal Company Limited"}]
[]
["Monitoring of Hydrogen Chloride emissions",null,null,"Whole Installation",null,null,"See  Notes in Cell Q3",null,null,{"$f":"+A3","v":"Monitoring of Hydrogen Chloride emissions"},null,null,null,"Per Combustion Line",null,null,"Notes:"]
[null,null,null,null,null,null,null,null,null,null,null,null,null,null,null,null,"User to add logic to complete Whole installation, Table A5:G18. From the data in Per Combustion Line, Table J6:O79, subject to No. of lines installed"]
[{"$f":"+'Cover Page'!C39","v":2024},"1/2 Hourly Reference Periods",null,null,"Daily Reference Periods"]
["mg/Nm3","1/2 hourly HCl ELV","Monthly mean of half-hourly averages","Highest half- hourly average","Daily HCl ELV","Monthly mean of  daily averages","Highest daily average",null,null,{"$f":"+A5","v":2024},"mg/Nm3","Monthly mean of half-hourly averages","Highest half- hourly average","Monthly mean of  daily averages","Highest daily average"]
["Jan",60,1.1000000000000001,20.57,8,1.0900000000000001,2.21,null,null,"A1","Jan",1.38,10.39,1.37,2.21]
["Feb",60,1.06,13.93,8,1.04,1.78,null,null,null,"Feb",1.39,13.93,1.38,1.59]
["Mar",60,1.05,3.57,8,1.07,1.74,null,null,null,"Mar",1.49,3.37,1.5,1.74,null,"Whole Installation table A5:G18:"]
["Apr",60,1.05,3.1,8,1.05,1.85,null,null,null,"Apr",1.63,3.1,1.63,1.85,null,"Mean: for 1/2 hourly and daily periods calculate mean of values across all operational combustion lines for the month"]
["May",60,0.99,6.25,8,0.99,1.86,null,null,null,"May",1.7,2.94,1.7,1.86]
["Jun",60,0.99,8.16,8,1.01,2.13,null,null,null,"Jun",1.88,8.16,1.87,2.13]
["Jul",60,0.88,4.09,8,0.89,1.56,null,null,null,"Jul",1.04,1.82,1.04,1.32,null,"Maximum: for 1/2 hourly and daily periods use the highest value across all operational combustion lines for the month"]
["Aug",60,1.17,7.47,8,1.19,3.89,null,null,null,"Aug",1.35,7.47,1.41,3.89]
["Sep",60,1.36,6.41,8,1.38,2.77,null,null,null,"Sep",1.51,3.49,1.5,1.92]
["Oct",60,0.98,4.18,8,1,2.16,null,null,null,"Oct",0.96,2.7,0.96,1.51]
["Nov",60,0.93,25.51,8,0.92,1.82,null,null,null,"Nov",1.05,3.85,1.05,1.82]
["Dec",60,1.4,4.63,8,1.41,2.64,null,null,null,"Dec",1.54,4.63,1.53,2.33]
[null,null,null,null,null,null,null,null,null,null,"Annual",{"$f":"AVERAGE(L7:L18)","v":1.41},{"$f":"MAX(M7:M18)","v":13.93},{"$f":"AVERAGE(N7:N18)","v":1.4116666666666668},{"$f":"MAX(O7:O18)","v":3.89}]
[]
[null,null,null,null,null,null,null,null,null,{"$f":"+A5","v":2024},"mg/Nm3","Monthly mean of half-hourly averages","Highest half- hourly average","Monthly mean of  daily averages","Highest daily average"]
[null,null,null,null,null,null,null,null,null,"A2","Jan",0.68,20.57,0.69,1.52]
[null,null,null,null,null,null,null,null,null,null,"Feb",0.59,2.52,0.59,1.1200000000000001]
[null,null,null,null,null,null,null,null,null,null,"Mar",0.16,2.12,0.16,0.46]
[null,null,null,null,null,null,null,null,null,null,"Apr",0.13,1.96,0.13,0.32]
[null,null,null,null,null,null,null,null,null,null,"May",0.25,1.7,0.25,0.56999999999999995]
[null,null,null,null,null,null,null,null,null,null,"Jun",0.35,6.21,0.37,0.68]
[null,null,null,null,null,null,null,null,null,null,"Jul",0.49,1.86,0.49,0.83]
[null,null,null,null,null,null,null,null,null,null,"Aug",0.71,3.63,0.72,1.02]
[null,null,null,null,null,null,null,null,null,null,"Sep",0.11,3.79,0.13,0.96]
[null,null,null,null,null,null,null,null,null,null,"Oct",0.3,3.23,0.3,0.56000000000000005]
[null,null,null,null,null,null,null,null,null,null,"Nov",0.56000000000000005,25.51,0.56000000000000005,1.1299999999999999]
[null,null,null,null,null,null,null,null,null,null,"Dec",0.56999999999999995,4.3099999999999996,0.59,1.3]
[null,null,null,null,null,null,null,null,null,null,"Annual",{"$f":"AVERAGE(L22:L33)","v":0.40833333333333338},{"$f":"MAX(M22:M33)","v":25.51},{"$f":"AVERAGE(N22:N33)","v":0.41499999999999987},{"$f":"MAX(O22:O33)","v":1.52}]
[]
[null,null,null,null,null,null,null,null,null,{"$f":"+A5","v":2024},"mg/Nm3","Monthly mean of half-hourly averages","Highest half- hourly average","Monthly mean of  daily averages","Highest daily average"]
[null,null,null,null,null,null,null,null,null,"A3","Jan",1.3,4.2699999999999996,1.31,1.74]
[null,null,null,null,null,null,null,null,null,null,"Feb",1.21,6.47,1.21,1.78]
[null,null,null,null,null,null,null,null,null,null,"Mar",1.26,3.57,1.26,1.7]
[null,null,null,null,null,null,null,null,null,null,"Apr",1.38,2.64,1.38,1.77]
[null,null,null,null,null,null,null,null,null,null,"May",1.04,6.25,1.03,1.59]
[null,null,null,null,null,null,null,null,null,null,"Jun",0.87,4.95,0.86,1.25]
[null,null,null,null,null,null,null,null,null,null,"Jul",1.18,4.09,1.18,1.56]
[null,null,null,null,null,null,null,null,null,null,"Aug",1.43,6.38,1.43,2.08]
[null,null,null,null,null,null,null,null,null,null,"Sep",1.71,6.41,1.71,2.77]
[null,null,null,null,null,null,null,null,null,null,"Oct",1.64,4.18,1.64,2.16]
[null,null,null,null,null,null,null,null,null,null,"Nov",1.54,4.84,1.56,1.79]
["Comments :",null,null,null,null,null,null,null,null,null,"Dec",2.08,4.21,2.11,2.64]
[null,null,null,null,null,null,null,null,null,null,"Annual",{"$f":"AVERAGE(L37:L48)","v":1.3866666666666667},{"$f":"MAX(M37:M48)","v":6.47},{"$f":"AVERAGE(N37:N48)","v":1.3900000000000003},{"$f":"MAX(O37:O48)","v":2.77}]
[]
[null,null,null,null,null,null,null,null,null,{"$f":"+A5","v":2024},"mg/Nm3","Monthly mean of half-hourly averages","Highest half- hourly average","Monthly mean of  daily averages","Highest daily average"]
[null,null,null,null,null,null,null,null,null,"A4","Jan"]
[null,null,null,null,null,null,null,null,null,null,"Feb"]
[null,null,null,null,null,null,null,null,null,null,"Mar"]
[null,null,null,null,null,null,null,null,null,null,"Apr"]
[null,null,null,null,null,null,null,null,null,null,"May"]
[null,null,null,null,null,null,null,null,null,null,"Jun"]
[null,null,null,null,null,null,null,null,null,null,"Jul"]
[null,null,null,null,null,null,null,null,null,null,"Aug"]
[null,null,null,null,null,null,null,null,null,null,"Sep"]
[null,null,null,null,null,null,null,null,null,null,"Oct"]
[null,null,null,null,null,null,null,null,null,null,"Nov"]
[null,null,null,null,null,null,null,null,null,null,"Dec"]
[null,null,null,null,null,null,null,null,null,null,"Annual",{"$f":"AVERAGE(L52:L63)","v":{"$error":"#DIV/0!"}},{"$f":"MAX(M52:M63)","v":0},{"$f":"AVERAGE(N52:N63)","v":{"$error":"#DIV/0!"}},{"$f":"MAX(O52:O63)","v":0}]
[]
[null,null,null,null,null,null,null,null,null,{"$f":"+A5","v":2024},"mg/Nm3","Monthly mean of half-hourly averages","Highest half- hourly average","Monthly mean of  daily averages","Highest daily average"]
[null,null,null,null,null,null,null,null,null,"A5","Jan"]
[null,null,null,null,null,null,null,null,null,null,"Feb"]
[null,null,null,null,null,null,null,null,null,null,"Mar"]
[null,null,null,null,null,null,null,null,null,null,"Apr"]
[null,null,null,null,null,null,null,null,null,null,"May"]
[null,null,null,null,null,null,null,null,null,null,"Jun"]
[null,null,null,null,null,null,null,null,null,null,"Jul"]
[null,null,null,null,null,null,null,null,null,null,"Aug"]
[null,null,null,null,null,null,null,null,null,null,"Sep"]
[null,null,null,null,null,null,null,null,null,null,"Oct"]
[null,null,null,null,null,null,null,null,null,null,"Nov"]
[null,null,null,null,null,null,null,null,null,null,"Dec"]
[null,null,null,null,null,null,null,null,null,null,"Annual",{"$f":"AVERAGE(L67:L78)","v":{"$error":"#DIV/0!"}},{"$f":"MAX(M67:M78)","v":0},{"$f":"AVERAGE(N67:N78)","v":{"$error":"#DIV/0!"}},{"$f":"MAX(O67:O78)","v":0}]

{"sheet":"SO2","index":16,"n_rows":79,"n_cols":17,"rows_kept":79,"cut":false,"hidden":false,"merged":[[3,16,7,18],[9,16,11,18],[12,16,15,18],[66,9,78,9],[4,1,4,3],[4,4,4,6],[4,9,4,14],[6,9,18,9],[21,9,33,9],[36,9,48,9],[47,0,47,6],[48,0,51,6],[51,9,63,9],[18,4,18,6]]}
[{"$f":"+'Cover Page'!$B$29","v":"Annual Performance Report 2024"},null,null,null,{"$f":"+'Cover Page'!$B$33","v":"The Coventry and Solihull Waste Disposal Company Limited"}]
[]
["Monitoring of Sulphur dioxide emissions",null,null,"Whole Installation",null,null,"See  Notes in Cell Q3",null,null,{"$f":"+A3","v":"Monitoring of Sulphur dioxide emissions"},null,null,null,"Per Combustion Line",null,null,"Notes:"]
[null,null,null,null,null,null,null,null,null,null,null,null,null,null,null,null,"User to add logic to complete Whole installation, Table A5:G18. From the data in Per Combustion Line, Table J6:O79, subject to No. of lines installed"]
[{"$f":"+'Cover Page'!C39","v":2024},"1/2 Hourly Reference Periods",null,null,"Daily Reference Periods"]
["mg/Nm3","1/2 hourly SO2 ELV","Monthly mean of half-hourly averages","Highest half- hourly average","Daily SO2 ELV","Monthly mean of  daily averages","Highest daily average",null,null,{"$f":"+A5","v":2024},"mg/Nm3","Monthly mean of half-hourly averages","Highest half- hourly average","Monthly mean of  daily averages","Highest daily average"]
["Jan",200,27.93,126.34,40,28.09,35.47,null,null,"A1","Jan",30.93,126.34,31.34,35.47]
["Feb",200,31.45,166.14,40,31.5,37.36,null,null,null,"Feb",32.21,166.14,32.229999999999997,34.99]
["Mar",200,31.4,149.16,40,31.46,39.020000000000003,null,null,null,"Mar",33.01,149.16,33.01,39.020000000000003,null,"Whole Installation table A5:G18:"]
["Apr",200,31.62,142,40,31.63,36.020000000000003,null,null,null,"Apr",33.42,118.07,33.51,36.020000000000003,null,"Mean: for 1/2 hourly and daily periods calculate mean of values across all operational combustion lines for the month"]
["May",200,30.01,98.21,40,30.11,36.200000000000003,null,null,null,"May",32.97,80.14,32.97,36.200000000000003]
["Jun",200,28.28,144.54,40,28.39,35.549999999999997,null,null,null,"Jun",33.36,119.95,33.090000000000003,35.549999999999997]
["Jul",200,27.94,84.49,40,27.95,33.630000000000003,null,null,null,"Jul",30.63,65.97,30.65,33.630000000000003,null,"Maximum: for 1/2 hourly and daily periods use the highest value across all operational combustion lines for the month"]
["Aug",200,31.51,97.07,40,31.93,35.21,null,null,null,"Aug",32.130000000000003,97.07,33.380000000000003,35.21]
["Sep",200,31.2,87.98,40,31.47,35.1,null,null,null,"Sep",34.22,68.61,34.49,35.1]
["Oct",200,31.76,109.11,40,31.87,35.32,null,null,null,"Oct",34.369999999999997,93.56,34.369999999999997,35.32]
["Nov",200,32.46,129.58000000000001,40,32.76,37.130000000000003,null,null,null,"Nov",34.54,129.58000000000001,34.54,37.130000000000003]
["Dec",200,31.43,170.6,40,31.81,38.86,null,null,null,"Dec",34.33,116.44,34.32,38.86]
[null,null,null,null,null,null,null,null,null,null,"Annual",{"$f":"AVERAGE(L7:L18)","v":33.01},{"$f":"MAX(M7:M18)","v":166.14},{"$f":"AVERAGE(N7:N18)","v":33.158333333333339},{"$f":"MAX(O7:O18)","v":39.020000000000003}]
[]
[null,null,null,null,null,null,null,null,null,{"$f":"+A5","v":2024},"mg/Nm3","Monthly mean of half-hourly averages","Highest half- hourly average","Monthly mean of  daily averages","Highest daily average"]
[null,null,null,null,null,null,null,null,null,"A2","Jan",31.13,108.93,31.12,35.43]
[null,null,null,null,null,null,null,null,null,null,"Feb",33.299999999999997,158.57,33.31,37.36]
[null,null,null,null,null,null,null,null,null,null,"Mar",32.14,102.75,32.479999999999997,35.21]
[null,null,null,null,null,null,null,null,null,null,"Apr",32.270000000000003,142,32.21,34.5]
[null,null,null,null,null,null,null,null,null,null,"May",30.63,98.21,30.63,32.549999999999997]
[null,null,null,null,null,null,null,null,null,null,"Jun",28.88,144.54,29.41,31.62]
[null,null,null,null,null,null,null,null,null,null,"Jul",28.89,60.36,29.02,32.07]
[null,null,null,null,null,null,null,null,null,null,"Aug",33.01,79.03,33.15,34.94]
[null,null,null,null,null,null,null,null,null,null,"Sep",22.08,72.63,22.65,34.57]
[null,null,null,null,null,null,null,null,null,null,"Oct",29.5,109.11,29.68,35.159999999999997]
[null,null,null,null,null,null,null,null,null,null,"Nov",33.619999999999997,89.2,33.619999999999997,35.07]
[null,null,null,null,null,null,null,null,null,null,"Dec",31.99,170.6,32.450000000000003,35.72]
[null,null,null,null,null,null,null,null,null,null,"Annual",{"$f":"AVERAGE(L22:L33)","v":30.62},{"$f":"MAX(M22:M33)","v":170.6},{"$f":"AVERAGE(N22:N33)","v":30.810833333333335},{"$f":"MAX(O22:O33)","v":37.36}]
[]
[null,null,null,null,null,null,null,null,null,{"$f":"+A5","v":2024},"mg/Nm3","Monthly mean of half-hourly averages","Highest half- hourly average","Monthly mean of  daily averages","Highest daily average"]
[null,null,null,null,null,null,null,null,null,"A3","Jan",22.63,60.31,22.92,29.53]
[null,null,null,null,null,null,null,null,null,null,"Feb",28.89,113.35,28.96,31.59]
[null,null,null,null,null,null,null,null,null,null,"Mar",29.23,118.28,29.23,31.77]
[null,null,null,null,null,null,null,null,null,null,"Apr",29.25,81.11,29.26,31.82]
[null,null,null,null,null,null,null,null,null,null,"May",25.32,73.88,25.36,30.04]
[null,null,null,null,null,null,null,null,null,null,"Jun",23.33,57.92,23.25,27.26]
[null,null,null,null,null,null,null,null,null,null,"Jul",25.64,84.49,25.64,29.72]
[null,null,null,null,null,null,null,null,null,null,"Aug",29.52,81.290000000000006,29.52,34.22]
[null,null,null,null,null,null,null,null,null,null,"Sep",32.299999999999997,87.98,32.299999999999997,34.56]
[null,null,null,null,null,null,null,null,null,null,"Oct",31.29,72.02,31.28,34.99]
[null,null,null,null,null,null,null,null,null,null,"Nov",24.54,67.59,25.55,34.299999999999997]
["Comments :",null,null,null,null,null,null,null,null,null,"Dec",27.91,77.67,28.46,34.520000000000003]
[null,null,null,null,null,null,null,null,null,null,"Annual",{"$f":"AVERAGE(L37:L48)","v":27.487500000000001},{"$f":"MAX(M37:M48)","v":118.28},{"$f":"AVERAGE(N37:N48)","v":27.644166666666667},{"$f":"MAX(O37:O48)","v":34.99}]
[]
[null,null,null,null,null,null,null,null,null,{"$f":"+A5","v":2024},"mg/Nm3","Monthly mean of half-hourly averages","Highest half- hourly average","Monthly mean of  daily averages","Highest daily average"]
[null,null,null,null,null,null,null,null,null,"A4","Jan"]
[null,null,null,null,null,null,null,null,null,null,"Feb"]
[null,null,null,null,null,null,null,null,null,null,"Mar"]
[null,null,null,null,null,null,null,null,null,null,"Apr"]
[null,null,null,null,null,null,null,null,null,null,"May"]
[null,null,null,null,null,null,null,null,null,null,"Jun"]
[null,null,null,null,null,null,null,null,null,null,"Jul"]
[null,null,null,null,null,null,null,null,null,null,"Aug"]
[null,null,null,null,null,null,null,null,null,null,"Sep"]
[null,null,null,null,null,null,null,null,null,null,"Oct"]
[null,null,null,null,null,null,null,null,null,null,"Nov"]
[null,null,null,null,null,null,null,null,null,null,"Dec"]
[null,null,null,null,null,null,null,null,null,null,"Annual",{"$f":"AVERAGE(L52:L63)","v":{"$error":"#DIV/0!"}},{"$f":"MAX(M52:M63)","v":0},{"$f":"AVERAGE(N52:N63)","v":{"$error":"#DIV/0!"}},{"$f":"MAX(O52:O63)","v":0}]
[]
[null,null,null,null,null,null,null,null,null,{"$f":"+A5","v":2024},"mg/Nm3","Monthly mean of half-hourly averages","Highest half- hourly average","Monthly mean of  daily averages","Highest daily average"]
[null,null,null,null,null,null,null,null,null,"A5","Jan"]
[null,null,null,null,null,null,null,null,null,null,"Feb"]
[null,null,null,null,null,null,null,null,null,null,"Mar"]
[null,null,null,null,null,null,null,null,null,null,"Apr"]
[null,null,null,null,null,null,null,null,null,null,"May"]
[null,null,null,null,null,null,null,null,null,null,"Jun"]
[null,null,null,null,null,null,null,null,null,null,"Jul"]
[null,null,null,null,null,null,null,null,null,null,"Aug"]
[null,null,null,null,null,null,null,null,null,null,"Sep"]
[null,null,null,null,null,null,null,null,null,null,"Oct"]
[null,null,null,null,null,null,null,null,null,null,"Nov"]
[null,null,null,null,null,null,null,null,null,null,"Dec"]
[null,null,null,null,null,null,null,null,null,null,"Annual",{"$f":"AVERAGE(L67:L78)","v":{"$error":"#DIV/0!"}},{"$f":"MAX(M67:M78)","v":0},{"$f":"AVERAGE(N67:N78)","v":{"$error":"#DIV/0!"}},{"$f":"MAX(O67:O78)","v":0}]

{"sheet":"NOx","index":17,"n_rows":79,"n_cols":17,"rows_kept":79,"cut":false,"hidden":false,"merged":[[3,16,7,18],[9,16,11,18],[12,16,15,18],[66,9,78,9],[4,1,4,3],[4,4,4,6],[4,9,4,14],[6,9,18,9],[21,9,33,9],[36,9,48,9],[47,0,47,6],[48,0,51,6],[51,9,63,9],[18,4,18,6]]}
[{"$f":"+'Cover Page'!$B$29","v":"Annual Performance Report 2024"},null,null,null,{"$f":"+'Cover Page'!$B$33","v":"The Coventry and Solihull Waste Disposal Company Limited"}]
[]
["Monitoring of Oxides of Nitrogen emissions",null,null,"Whole Installation",null,null,"See  Notes in Cell Q3",null,null,{"$f":"+A3","v":"Monitoring of Oxides of Nitrogen emissions"},null,null,null,"Per Combustion Line",null,null,"Notes:"]
[null,null,null,null,null,null,null,null,null,null,null,null,null,null,null,null,"User to add logic to complete Whole installation, Table A5:G18. From the data in Per Combustion Line, Table J6:O79, subject to No. of lines installed"]
[{"$f":"+'Cover Page'!C39","v":2024},"1/2 Hourly Reference Periods",null,null,"Daily Reference Periods"]
["mg/Nm3","1/2 hourly NOx ELV","Monthly mean of half-hourly averages","Highest half- hourly average","Daily NOx ELV","Monthly mean of  daily averages","Highest daily average",null,null,{"$f":"+A5","v":2024},"mg/Nm3","Monthly mean of half-hourly averages","Highest half- hourly average","Monthly mean of  daily averages","Highest daily average"]
["Jan",400,164.84,285.5,180,164.84,177.65,null,null,"A1","Jan",170.06,285.5,170.46,177.65]
["Feb",400,167.75,256.7,180,167.89,177.76,null,null,null,"Feb",170.28,256.7,169.97,177.76]
["Mar",400,166.64,263.86,180,166.81,176.02,null,null,null,"Mar",167.13,263.86,167.11,176.02,null,"Whole Installation table A5:G18:"]
["Apr",400,160.72999999999999,304.99,180,160.80000000000001,177.98,null,null,null,"Apr",163.37,304.99,163.53,177.98,null,"Mean: for 1/2 hourly and daily periods calculate mean of values across all operational combustion lines for the month"]
["May",400,165.33,251.3,180,165.47,175.17,null,null,null,"May",167.04,251.3,167.04,174.93]
["Jun",400,164.63,309.70999999999998,180,164.84,173.46,null,null,null,"Jun",164.34,309.70999999999998,164.32,171.25]
["Jul",400,165.57,307.62,180,165.54,178.21,null,null,null,"Jul",169.77,241.11,169.48,173.21,null,"Maximum: for 1/2 hourly and daily periods use the highest value across all operational combustion lines for the month"]
["Aug",400,167.61,268.11,180,168.05,174.5,null,null,null,"Aug",168.18,238.57,169.43,172.66]
["Sep",400,166.83,236.48,180,167.18,170.68,null,null,null,"Sep",165.9,231.25,166.7,170.68]
["Oct",400,161.46,242.78,180,161.44999999999999,173.18,null,null,null,"Oct",156.44,239.62,156.46,168.48]
["Nov",400,154.78,235.56,180,154.47,172.45,null,null,null,"Nov",144.93,235.56,144.91999999999999,154.84]
["Dec",400,166.1,259.8,180,166.26,177.27,null,null,null,"Dec",161.28,211,161.29,169.73]
[null,null,null,null,null,null,null,null,null,null,"Annual",{"$f":"AVERAGE(L7:L18)","v":164.06000000000003},{"$f":"MAX(M7:M18)","v":309.70999999999998},{"$f":"AVERAGE(N7:N18)","v":164.22583333333336},{"$f":"MAX(O7:O18)","v":177.98}]
[]
[null,null,null,null,null,null,null,null,null,{"$f":"+A5","v":2024},"mg/Nm3","Monthly mean of half-hourly averages","Highest half- hourly average","Monthly mean of  daily averages","Highest daily average"]
[null,null,null,null,null,null,null,null,null,"A2","Jan",168.78,284.35000000000002,168.91,176.71]
[null,null,null,null,null,null,null,null,null,null,"Feb",169.05,247.97,169.05,176.69]
[null,null,null,null,null,null,null,null,null,null,"Mar",167.68,247.48,168.48,173.92]
[null,null,null,null,null,null,null,null,null,null,"Apr",162.41999999999999,272.63,162.53,175.37]
[null,null,null,null,null,null,null,null,null,null,"May",164.55,248.42,164.54,175.17]
[null,null,null,null,null,null,null,null,null,null,"Jun",165.2,280.86,165.96,173.46]
[null,null,null,null,null,null,null,null,null,null,"Jul",162.08000000000001,307.62,162.11000000000001,178.21]
[null,null,null,null,null,null,null,null,null,null,"Aug",167.02,248.95,167.21,174.5]
[null,null,null,null,null,null,null,null,null,null,"Sep",163.56,236.48,163.36000000000001,169.74]
[null,null,null,null,null,null,null,null,null,null,"Oct",158.81,234.4,158.58000000000001,173.18]
[null,null,null,null,null,null,null,null,null,null,"Nov",159.47,233.36,159.47,172.45]
[null,null,null,null,null,null,null,null,null,null,"Dec",168.02,258.64,168.3,177.27]
[null,null,null,null,null,null,null,null,null,null,"Annual",{"$f":"AVERAGE(L22:L33)","v":164.72},{"$f":"MAX(M22:M33)","v":307.62},{"$f":"AVERAGE(N22:N33)","v":164.875},{"$f":"MAX(O22:O33)","v":178.21}]
[]
[null,null,null,null,null,null,null,null,null,{"$f":"+A5","v":2024},"mg/Nm3","Monthly mean of half-hourly averages","Highest half- hourly average","Monthly mean of  daily averages","Highest daily average"]
[null,null,null,null,null,null,null,null,null,"A3","Jan",157.22999999999999,255.21,157.09,176.14]
[null,null,null,null,null,null,null,null,null,null,"Feb",164.08,232.87,164.82,174.34]
[null,null,null,null,null,null,null,null,null,null,"Mar",165.37,221.33,165.39,172.68]
[null,null,null,null,null,null,null,null,null,null,"Apr",156.53,217.36,156.5,164.21]
[null,null,null,null,null,null,null,null,null,null,"May",164.12,250.51,164.58,171.72]
[null,null,null,null,null,null,null,null,null,null,"Jun",164.28,231.31,164.21,170.94]
[null,null,null,null,null,null,null,null,null,null,"Jul",166.84,287.98,166.85,177.61]
[null,null,null,null,null,null,null,null,null,null,"Aug",167.62,268.11,167.62,172.56]
[null,null,null,null,null,null,null,null,null,null,"Sep",168.79,224.75,168.79,170.36]
[null,null,null,null,null,null,null,null,null,null,"Oct",168.96,242.78,168.95,172.43]
[null,null,null,null,null,null,null,null,null,null,"Nov",167.34,218.59,166.86,171.4]
["Comments :",null,null,null,null,null,null,null,null,null,"Dec",169.08,259.8,169.46,174.52]
[null,null,null,null,null,null,null,null,null,null,"Annual",{"$f":"AVERAGE(L37:L48)","v":165.02},{"$f":"MAX(M37:M48)","v":287.98},{"$f":"AVERAGE(N37:N48)","v":165.09333333333333},{"$f":"MAX(O37:O48)","v":177.61}]
[]
[null,null,null,null,null,null,null,null,null,{"$f":"+A5","v":2024},"mg/Nm3","Monthly mean of half-hourly averages","Highest half- hourly average","Monthly mean of  daily averages","Highest daily average"]
[null,null,null,null,null,null,null,null,null,"A4","Jan"]
[null,null,null,null,null,null,null,null,null,null,"Feb"]
[null,null,null,null,null,null,null,null,null,null,"Mar"]
[null,null,null,null,null,null,null,null,null,null,"Apr"]
[null,null,null,null,null,null,null,null,null,null,"May"]
[null,null,null,null,null,null,null,null,null,null,"Jun"]
[null,null,null,null,null,null,null,null,null,null,"Jul"]
[null,null,null,null,null,null,null,null,null,null,"Aug"]
[null,null,null,null,null,null,null,null,null,null,"Sep"]
[null,null,null,null,null,null,null,null,null,null,"Oct"]
[null,null,null,null,null,null,null,null,null,null,"Nov"]
[null,null,null,null,null,null,null,null,null,null,"Dec"]
[null,null,null,null,null,null,null,null,null,null,"Annual",{"$f":"AVERAGE(L52:L63)","v":{"$error":"#DIV/0!"}},{"$f":"MAX(M52:M63)","v":0},{"$f":"AVERAGE(N52:N63)","v":{"$error":"#DIV/0!"}},{"$f":"MAX(O52:O63)","v":0}]
[]
[null,null,null,null,null,null,null,null,null,{"$f":"+A5","v":2024},"mg/Nm3","Monthly mean of half-hourly averages","Highest half- hourly average","Monthly mean of  daily averages","Highest daily average"]
[null,null,null,null,null,null,null,null,null,"A5","Jan"]
[null,null,null,null,null,null,null,null,null,null,"Feb"]
[null,null,null,null,null,null,null,null,null,null,"Mar"]
[null,null,null,null,null,null,null,null,null,null,"Apr"]
[null,null,null,null,null,null,null,null,null,null,"May"]
[null,null,null,null,null,null,null,null,null,null,"Jun"]
[null,null,null,null,null,null,null,null,null,null,"Jul"]
[null,null,null,null,null,null,null,null,null,null,"Aug"]
[null,null,null,null,null,null,null,null,null,null,"Sep"]
[null,null,null,null,null,null,null,null,null,null,"Oct"]
[null,null,null,null,null,null,null,null,null,null,"Nov"]
[null,null,null,null,null,null,null,null,null,null,"Dec"]
[null,null,null,null,null,null,null,null,null,null,"Annual",{"$f":"AVERAGE(L67:L78)","v":{"$error":"#DIV/0!"}},{"$f":"MAX(M67:M78)","v":0},{"$f":"AVERAGE(N67:N78)","v":{"$error":"#DIV/0!"}},{"$f":"MAX(O67:O78)","v":0}]

{"sheet":"TOC","index":18,"n_rows":79,"n_cols":17,"rows_kept":79,"cut":false,"hidden":false,"merged":[[3,16,7,18],[9,16,11,18],[12,16,15,18],[66,9,78,9],[4,1,4,3],[4,4,4,6],[4,9,4,14],[6,9,18,9],[21,9,33,9],[36,9,48,9],[47,0,47,6],[48,0,51,6],[51,9,63,9]]}
[{"$f":"+'Cover Page'!$B$29","v":"Annual Performance Report 2024"},null,null,null,{"$f":"+'Cover Page'!$B$33","v":"The Coventry and Solihull Waste Disposal Company Limited"}]
[]
["Monitoring of Total organic carbon emissions",null,null,"Whole Installation",null,null,"See  Notes in Cell Q3",null,null,{"$f":"+A3","v":"Monitoring of Total organic carbon emissions"},null,null,null,"Per Combustion Line",null,null,"Notes:"]
[null,null,null,null,null,null,null,null,null,null,null,null,null,null,null,null,"User to add logic to complete Whole installation, Table A5:G18. From the data in Per Combustion Line, Table J6:O79, subject to No. of lines installed"]
[{"$f":"+'Cover Page'!C39","v":2024},"1/2 Hourly Reference Periods",null,null,"Daily Reference Periods"]
["mg/Nm3","1/2 hourly TOC ELV","Monthly mean of half-hourly averages","Highest half- hourly average","Daily TOC ELV","Monthly mean of  daily averages","Highest daily average",null,null,{"$f":"+A5","v":2024},"mg/Nm3","Monthly mean of half-hourly averages","Highest half- hourly average","Monthly mean of  daily averages","Highest daily average"]
["Jan",20,0.56000000000000005,4.72,10,0.55000000000000004,1.1299999999999999,null,null,"A1","Jan",1.02,3.98,1,1.1299999999999999]
["Feb",20,0.69,6.61,10,0.68,1.27,null,null,null,"Feb",0.8,4.58,0.78,1.27]
["Mar",20,0.69,6.48,10,0.69,1.07,null,null,null,"Mar",0.8,5.52,0.8,1.07,null,"Whole Installation table A5:G18:"]
["Apr",20,0.65,6.32,10,0.65,1.0900000000000001,null,null,null,"Apr",0.81,6.32,0.81,1.04,null,"Mean: for 1/2 hourly and daily periods calculate mean of values across all operational combustion lines for the month"]
["May",20,0.62,9.56,10,0.62,0.99,null,null,null,"May",0.77,5.35,0.77,0.92]
["Jun",20,0.64,9.59,10,0.65,1.27,null,null,null,"Jun",0.78,4.78,0.79,0.96]
["Jul",20,0.68,4.62,10,0.67,1.28,null,null,null,"Jul",0.9,4.62,0.9,1.06,null,"Maximum: for 1/2 hourly and daily periods use the highest value across all operational combustion lines for the month"]
["Aug",20,0.85,6.02,10,0.84,1.51,null,null,null,"Aug",1.02,6.02,1.01,1.51]
["Sep",20,0.9,6.21,10,0.89,1.37,null,null,null,"Sep",1.07,6.21,1.08,1.37]
["Oct",20,0.82,7.02,10,0.83,1.37,null,null,null,"Oct",1.1100000000000001,7.02,1.1100000000000001,1.37]
["Nov",20,0.65,8.86,10,0.66,1.47,null,null,null,"Nov",1.05,8.86,1.05,1.47]
["Dec",20,0.61,11.32,10,0.61,1.61,null,null,null,"Dec",0.92,7.18,0.92,1.19]
[null,null,null,null,null,null,null,null,null,null,"Annual",{"$f":"AVERAGE(L7:L18)","v":0.92083333333333339},{"$f":"MAX(M7:M18)","v":8.86},{"$f":"AVERAGE(N7:N18)","v":0.91833333333333345},{"$f":"MAX(O7:O18)","v":1.51}]
[]
[null,null,null,null,null,null,null,null,null,{"$f":"+A5","v":2024},"mg/Nm3","Monthly mean of half-hourly averages","Highest half- hourly average","Monthly mean of  daily averages","Highest daily average"]
[null,null,null,null,null,null,null,null,null,"A2","Jan",0.27,3.78,0.27,0.72]
[null,null,null,null,null,null,null,null,null,null,"Feb",0.53,6.61,0.53,0.81]
[null,null,null,null,null,null,null,null,null,null,"Mar",0.49,5.81,0.47,0.66]
[null,null,null,null,null,null,null,null,null,null,"Apr",0.25,4.84,0.25,0.62]
[null,null,null,null,null,null,null,null,null,null,"May",0.28999999999999998,4.7,0.28999999999999998,0.53]
[null,null,null,null,null,null,null,null,null,null,"Jun",0.28000000000000003,3.94,0.27,0.56999999999999995]
[null,null,null,null,null,null,null,null,null,null,"Jul",0.37,4.57,0.35,1.28]
[null,null,null,null,null,null,null,null,null,null,"Aug",0.69,4.66,0.69,1.31]
[null,null,null,null,null,null,null,null,null,null,"Sep",0.63,6.2,0.6,0.83]
[null,null,null,null,null,null,null,null,null,null,"Oct",0.55000000000000004,5.3,0.54,0.82]
[null,null,null,null,null,null,null,null,null,null,"Nov",0.35,4.1100000000000003,0.35,0.77]
[null,null,null,null,null,null,null,null,null,null,"Dec",0.31,4.7300000000000004,0.31,0.54]
[null,null,null,null,null,null,null,null,null,null,"Annual",{"$f":"AVERAGE(L22:L33)","v":0.41749999999999998},{"$f":"MAX(M22:M33)","v":6.61},{"$f":"AVERAGE(N22:N33)","v":0.40999999999999992},{"$f":"MAX(O22:O33)","v":1.31}]
[]
[null,null,null,null,null,null,null,null,null,{"$f":"+A5","v":2024},"mg/Nm3","Monthly mean of half-hourly averages","Highest half- hourly average","Monthly mean of  daily averages","Highest daily average"]
[null,null,null,null,null,null,null,null,null,"A3","Jan",0.53,4.72,0.54,0.92]
[null,null,null,null,null,null,null,null,null,null,"Feb",0.73,6.5,0.74,1.02]
[null,null,null,null,null,null,null,null,null,null,"Mar",0.74,6.48,0.74,0.99]
[null,null,null,null,null,null,null,null,null,null,"Apr",0.89,4.21,0.88,1.0900000000000001]
[null,null,null,null,null,null,null,null,null,null,"May",0.87,9.56,0.88,0.99]
[null,null,null,null,null,null,null,null,null,null,"Jun",0.9,9.59,0.9,1.27]
[null,null,null,null,null,null,null,null,null,null,"Jul",0.86,3.09,0.86,1.25]
[null,null,null,null,null,null,null,null,null,null,"Aug",0.83,4.55,0.83,1.1100000000000001]
[null,null,null,null,null,null,null,null,null,null,"Sep",0.86,4.26,0.86,1.19]
[null,null,null,null,null,null,null,null,null,null,"Oct",0.79,5.86,0.79,0.98]
[null,null,null,null,null,null,null,null,null,null,"Nov",0.41,3.35,0.44,0.75]
["Comments :",null,null,null,null,null,null,null,null,null,"Dec",0.6,11.32,0.6,1.61]
[null,null,null,null,null,null,null,null,null,null,"Annual",{"$f":"AVERAGE(L37:L48)","v":0.75083333333333335},{"$f":"MAX(M37:M48)","v":11.32},{"$f":"AVERAGE(N37:N48)","v":0.75499999999999989},{"$f":"MAX(O37:O48)","v":1.61}]
[]
[null,null,null,null,null,null,null,null,null,{"$f":"+A5","v":2024},"mg/Nm3","Monthly mean of half-hourly averages","Highest half- hourly average","Monthly mean of  daily averages","Highest daily average"]
[null,null,null,null,null,null,null,null,null,"A4","Jan"]
[null,null,null,null,null,null,null,null,null,null,"Feb"]
[null,null,null,null,null,null,null,null,null,null,"Mar"]
[null,null,null,null,null,null,null,null,null,null,"Apr"]
[null,null,null,null,null,null,null,null,null,null,"May"]
[null,null,null,null,null,null,null,null,null,null,"Jun"]
[null,null,null,null,null,null,null,null,null,null,"Jul"]
[null,null,null,null,null,null,null,null,null,null,"Aug"]
[null,null,null,null,null,null,null,null,null,null,"Sep"]
[null,null,null,null,null,null,null,null,null,null,"Oct"]
[null,null,null,null,null,null,null,null,null,null,"Nov"]
[null,null,null,null,null,null,null,null,null,null,"Dec"]
[null,null,null,null,null,null,null,null,null,null,"Annual",{"$f":"AVERAGE(L52:L63)","v":{"$error":"#DIV/0!"}},{"$f":"MAX(M52:M63)","v":0},{"$f":"AVERAGE(N52:N63)","v":{"$error":"#DIV/0!"}},{"$f":"MAX(O52:O63)","v":0}]
[]
[null,null,null,null,null,null,null,null,null,{"$f":"+A5","v":2024},"mg/Nm3","Monthly mean of half-hourly averages","Highest half- hourly average","Monthly mean of  daily averages","Highest daily average"]
[null,null,null,null,null,null,null,null,null,"A5","Jan"]
[null,null,null,null,null,null,null,null,null,null,"Feb"]
[null,null,null,null,null,null,null,null,null,null,"Mar"]
[null,null,null,null,null,null,null,null,null,null,"Apr"]
[null,null,null,null,null,null,null,null,null,null,"May"]
[null,null,null,null,null,null,null,null,null,null,"Jun"]
[null,null,null,null,null,null,null,null,null,null,"Jul"]
[null,null,null,null,null,null,null,null,null,null,"Aug"]
[null,null,null,null,null,null,null,null,null,null,"Sep"]
[null,null,null,null,null,null,null,null,null,null,"Oct"]
[null,null,null,null,null,null,null,null,null,null,"Nov"]
[null,null,null,null,null,null,null,null,null,null,"Dec"]
[null,null,null,null,null,null,null,null,null,null,"Annual",{"$f":"AVERAGE(L67:L78)","v":{"$error":"#DIV/0!"}},{"$f":"MAX(M67:M78)","v":0},{"$f":"AVERAGE(N67:N78)","v":{"$error":"#DIV/0!"}},{"$f":"MAX(O67:O78)","v":0}]

{"sheet":"Particulates","index":19,"n_rows":79,"n_cols":17,"rows_kept":79,"cut":false,"hidden":false,"merged":[[4,16,8,18],[10,16,12,18],[13,16,16,18],[66,9,78,9],[4,1,4,3],[4,4,4,6],[4,9,4,14],[6,9,18,9],[21,9,33,9],[36,9,48,9],[47,0,47,6],[48,0,51,6],[51,9,63,9],[18,4,18,6]]}
[{"$f":"+'Cover Page'!$B$29","v":"Annual Performance Report 2024"},null,null,null,{"$f":"+'Cover Page'!$B$33","v":"The Coventry and Solihull Waste Disposal Company Limited"}]
[]
["Monitoring of Particulate matter emissions",null,null,"Whole Installation",null,null,"See  Notes in Cell Q3",null,null,{"$f":"+A3","v":"Monitoring of Particulate matter emissions"},null,null,null,"Per Combustion Line",null,null,"Notes:"]
[]
[{"$f":"+'Cover Page'!C39","v":2024},"1/2 Hourly Reference Periods",null,null,"Daily Reference Periods",null,null,null,null,null,null,null,null,null,null,null,"User to add logic to complete Whole installation, Table A5:G18. From the data in Per Combustion Line, Table J6:O79, subject to No. of lines installed"]
["mg/Nm3","1/2 hourly PM ELV","Monthly mean of half-hourly averages","Highest half- hourly average","Daily PM ELV","Monthly mean of  daily averages","Highest daily average",null,null,{"$f":"+A5","v":2024},"mg/Nm3","Monthly mean of half-hourly averages","Highest half- hourly average","Monthly mean of  daily averages","Highest daily average"]
["Jan",30,0.7,3.83,5,0.68,1.97,null,null,"A1","Jan",1.67,3.83,1.68,1.97]
["Feb",30,0.64,5.83,5,0.63,2.33,null,null,null,"Feb",1.25,5.83,1.27,2.33]
["Mar",30,0.93,6.75,5,0.95,3.78,null,null,null,"Mar",1.92,6.75,1.93,3.78]
["Apr",30,1.21,9.8800000000000008,5,1.22,4.08,null,null,null,"Apr",3.05,9.8800000000000008,3.06,4.08,null,"Whole Installation table A5:G18:"]
["May",30,1.04,5.2,5,1.06,3.59,null,null,null,"May",2.2999999999999998,5.2,2.2999999999999998,3.59,null,"Mean: for 1/2 hourly and daily periods calculate mean of values across all operational combustion lines for the month"]
["Jun",30,0.77,4.63,5,0.78,3.06,null,null,null,"Jun",1.75,4.63,1.75,3.06]
["Jul",30,0.41,16.3,5,0.39,0.69,null,null,null,"Jul",0.56999999999999995,16.3,0.47,0.69]
["Aug",30,0.35,2.04,5,0.35,0.83,null,null,null,"Aug",0.43,2.04,0.43,0.83,null,"Maximum: for 1/2 hourly and daily periods use the highest value across all operational combustion lines for the month"]
["Sep",30,0.41,3.51,5,0.4,0.57999999999999996,null,null,null,"Sep",0.43,1.1100000000000001,0.42,0.46]
["Oct",30,0.47,1.59,5,0.46,0.98,null,null,null,"Oct",0.4,0.56999999999999995,0.4,0.43]
["Nov",30,0.55000000000000004,2.3199999999999998,5,0.55000000000000004,0.96,null,null,null,"Nov",0.4,0.62,0.4,0.43]
["Dec",30,0.54,1.59,5,0.53,1.03,null,null,null,"Dec",0.42,0.95,0.42,0.46]
[null,null,null,null,null,null,null,null,null,null,"Annual",{"$f":"AVERAGE(L7:L18)","v":1.2158333333333333},{"$f":"MAX(M7:M18)","v":16.3},{"$f":"AVERAGE(N7:N18)","v":1.2108333333333332},{"$f":"MAX(O7:O18)","v":4.08}]
[]
[null,null,null,null,null,null,null,null,null,{"$f":"+A5","v":2024},"mg/Nm3","Monthly mean of half-hourly averages","Highest half- hourly average","Monthly mean of  daily averages","Highest daily average"]
[null,null,null,null,null,null,null,null,null,"A2","Jan",0.42,0.65,0.42,0.46]
[null,null,null,null,null,null,null,null,null,null,"Feb",0.37,1.06,0.37,0.66]
[null,null,null,null,null,null,null,null,null,null,"Mar",0.4,1.01,0.4,0.59]
[null,null,null,null,null,null,null,null,null,null,"Apr",0.3,0.39,0.3,0.33]
[null,null,null,null,null,null,null,null,null,null,"May",0.32,0.56000000000000005,0.32,0.35]
[null,null,null,null,null,null,null,null,null,null,"Jun",0.34,0.98,0.33,0.52]
[null,null,null,null,null,null,null,null,null,null,"Jul",0.37,0.97,0.37,0.49]
[null,null,null,null,null,null,null,null,null,null,"Aug",0.31,0.7,0.31,0.33]
[null,null,null,null,null,null,null,null,null,null,"Sep",0.54,3.51,0.51,0.57999999999999996]
[null,null,null,null,null,null,null,null,null,null,"Oct",0.66,1.59,0.66,0.98]
[null,null,null,null,null,null,null,null,null,null,"Nov",0.78,1.5,0.77,0.96]
[null,null,null,null,null,null,null,null,null,null,"Dec",0.83,1.59,0.83,1.03]
[null,null,null,null,null,null,null,null,null,null,"Annual",{"$f":"AVERAGE(L22:L33)","v":0.47000000000000003},{"$f":"MAX(M22:M33)","v":3.51},{"$f":"AVERAGE(N22:N33)","v":0.46583333333333332},{"$f":"MAX(O22:O33)","v":1.03}]
[]
[null,null,null,null,null,null,null,null,null,{"$f":"+A5","v":2024},"mg/Nm3","Monthly mean of half-hourly averages","Highest half- hourly average","Monthly mean of  daily averages","Highest daily average"]
[null,null,null,null,null,null,null,null,null,"A3","Jan",0.28999999999999998,0.45,0.28999999999999998,0.31]
[null,null,null,null,null,null,null,null,null,null,"Feb",0.35,0.45,0.35,0.37]
[null,null,null,null,null,null,null,null,null,null,"Mar",0.34,0.55000000000000004,0.34,0.38]
[null,null,null,null,null,null,null,null,null,null,"Apr",0.33,0.52,0.33,0.36]
[null,null,null,null,null,null,null,null,null,null,"May",0.36,0.84,0.36,0.38]
[null,null,null,null,null,null,null,null,null,null,"Jun",0.36,0.52,0.36,0.39]
[null,null,null,null,null,null,null,null,null,null,"Jul",0.36,0.5,0.36,0.39]
[null,null,null,null,null,null,null,null,null,null,"Aug",0.33,0.44,0.33,0.36]
[null,null,null,null,null,null,null,null,null,null,"Sep",0.34,1.3,0.34,0.41]
[null,null,null,null,null,null,null,null,null,null,"Oct",0.36,0.67,0.36,0.4]
[null,null,null,null,null,null,null,null,null,null,"Nov",0.36,2.3199999999999998,0.34,0.37]
["Comments :",null,null,null,null,null,null,null,null,null,"Dec",0.35,0.72,0.35,0.42]
[null,null,null,null,null,null,null,null,null,null,"Annual",{"$f":"AVERAGE(L37:L48)","v":0.34416666666666657},{"$f":"MAX(M37:M48)","v":2.3199999999999998},{"$f":"AVERAGE(N37:N48)","v":0.34249999999999997},{"$f":"MAX(O37:O48)","v":0.42}]
[]
[null,null,null,null,null,null,null,null,null,{"$f":"+A5","v":2024},"mg/Nm3","Monthly mean of half-hourly averages","Highest half- hourly average","Monthly mean of  daily averages","Highest daily average"]
[null,null,null,null,null,null,null,null,null,"A4","Jan"]
[null,null,null,null,null,null,null,null,null,null,"Feb"]
[null,null,null,null,null,null,null,null,null,null,"Mar"]
[null,null,null,null,null,null,null,null,null,null,"Apr"]
[null,null,null,null,null,null,null,null,null,null,"May"]
[null,null,null,null,null,null,null,null,null,null,"Jun"]
[null,null,null,null,null,null,null,null,null,null,"Jul"]
[null,null,null,null,null,null,null,null,null,null,"Aug"]
[null,null,null,null,null,null,null,null,null,null,"Sep"]
[null,null,null,null,null,null,null,null,null,null,"Oct"]
[null,null,null,null,null,null,null,null,null,null,"Nov"]
[null,null,null,null,null,null,null,null,null,null,"Dec"]
[null,null,null,null,null,null,null,null,null,null,"Annual",{"$f":"AVERAGE(L52:L63)","v":{"$error":"#DIV/0!"}},{"$f":"MAX(M52:M63)","v":0},{"$f":"AVERAGE(N52:N63)","v":{"$error":"#DIV/0!"}},{"$f":"MAX(O52:O63)","v":0}]
[]
[null,null,null,null,null,null,null,null,null,{"$f":"+A5","v":2024},"mg/Nm3","Monthly mean of half-hourly averages","Highest half- hourly average","Monthly mean of  daily averages","Highest daily average"]
[null,null,null,null,null,null,null,null,null,"A5","Jan"]
[null,null,null,null,null,null,null,null,null,null,"Feb"]
[null,null,null,null,null,null,null,null,null,null,"Mar"]
[null,null,null,null,null,null,null,null,null,null,"Apr"]
[null,null,null,null,null,null,null,null,null,null,"May"]
[null,null,null,null,null,null,null,null,null,null,"Jun"]
[null,null,null,null,null,null,null,null,null,null,"Jul"]
[null,null,null,null,null,null,null,null,null,null,"Aug"]
[null,null,null,null,null,null,null,null,null,null,"Sep"]
[null,null,null,null,null,null,null,null,null,null,"Oct"]
[null,null,null,null,null,null,null,null,null,null,"Nov"]
[null,null,null,null,null,null,null,null,null,null,"Dec"]
[null,null,null,null,null,null,null,null,null,null,"Annual",{"$f":"AVERAGE(L67:L78)","v":{"$error":"#DIV/0!"}},{"$f":"MAX(M67:M78)","v":0},{"$f":"AVERAGE(N67:N78)","v":{"$error":"#DIV/0!"}},{"$f":"MAX(O67:O78)","v":0}]

{"sheet":"CO 0.5 hourly","index":20,"n_rows":82,"n_cols":17,"rows_kept":82,"cut":false,"hidden":false,"merged":[[4,0,5,6],[6,16,10,18],[12,16,14,18],[15,16,18,18],[69,9,81,9],[7,1,7,3],[7,4,7,6],[7,9,7,14],[9,9,21,9],[24,9,36,9],[39,9,51,9],[50,0,50,6],[51,0,54,6],[54,9,66,9]]}
[{"$f":"+'Cover Page'!$B$29","v":"Annual Performance Report 2024"},null,null,null,{"$f":"+'Cover Page'!$B$33","v":"The Coventry and Solihull Waste Disposal Company Limited"}]
[]
["Monitoring of Carbon Monoxide (half hourly)",null,null,"Whole Installation",null,null,"See  Notes in Cell Q3",null,null,{"$f":"+A3","v":"Monitoring of Carbon Monoxide (half hourly)"},null,null,null,"Per Combustion Line",null,null,"Notes:"]
[]
["Please complete this tab for your plant if you have 1/2 hourly CO ELVs; otherwise, leave it blank and complete the CO 95% 10 min tab"]
[]
[null,null,null,null,null,null,null,null,null,null,null,null,null,null,null,null,"User to add logic to complete Whole installation, Table A5:G18. From the data in Per Combustion Line, Table J6:O79, subject to No. of lines installed"]
[{"$f":"+'Cover Page'!C39","v":2024},"1/2 Hourly Reference Periods",null,null,"Daily Reference Periods"]
["mg/Nm3","1/2 hourly CO ELV","Monthly mean of half-hourly averages","Highest half- hourly average","Daily CO ELV","Monthly mean of  daily averages","Highest daily average",null,null,{"$f":"+A8","v":2024},"mg/Nm3","Monthly mean of half-hourly averages","Highest half- hourly average","Monthly mean of  daily averages","Highest daily average"]
["Jan",100,null,null,50,null,null,null,null,"A1","Jan"]
["Feb",{"$f":"+B10","v":100},null,null,{"$f":"+E10","v":50},null,null,null,null,null,"Feb"]
["Mar",{"$f":"+B11","v":100},null,null,{"$f":"+E11","v":50},null,null,null,null,null,"Mar",null,null,null,null,null,"Whole Installation table A5:G18:"]
["Apr",100,null,null,50,null,null,null,null,null,"Apr",null,null,null,null,null,"Mean: for 1/2 hourly and daily periods calculate mean of values across all operational combustion lines for the month"]
["May",100,null,null,50,null,null,null,null,null,"May"]
["Jun",100,null,null,50,null,null,null,null,null,"Jun"]
["Jul",100,null,null,50,null,null,null,null,null,"Jul",null,null,null,null,null,"Maximum: for 1/2 hourly and daily periods use the highest value across all operational combustion lines for the month"]
["Aug",100,null,null,50,null,null,null,null,null,"Aug"]
["Sep",100,null,null,50,null,null,null,null,null,"Sep"]
["Oct",100,null,null,50,null,null,null,null,null,"Oct"]
["Nov",100,null,null,50,null,null,null,null,null,"Nov"]
["Dec",100,null,null,50,null,null,null,null,null,"Dec"]
[null,null,null,null,null,null,null,null,null,null,"Annual",{"$f":"AVERAGE(L10:L21)","v":{"$error":"#DIV/0!"}},{"$f":"MAX(M10:M21)","v":0},{"$f":"AVERAGE(N10:N21)","v":{"$error":"#DIV/0!"}},{"$f":"MAX(O10:O21)","v":0}]
[]
[null,null,null,null,null,null,null,null,null,{"$f":"+A8","v":2024},"mg/Nm3","Monthly mean of half-hourly averages","Highest half- hourly average","Monthly mean of  daily averages","Highest daily average"]
[null,null,null,null,null,null,null,null,null,"A2","Jan"]
[null,null,null,null,null,null,null,null,null,null,"Feb"]
[null,null,null,null,null,null,null,null,null,null,"Mar"]
[null,null,null,null,null,null,null,null,null,null,"Apr"]
[null,null,null,null,null,null,null,null,null,null,"May"]
[null,null,null,null,null,null,null,null,null,null,"Jun"]
[null,null,null,null,null,null,null,null,null,null,"Jul"]
[null,null,null,null,null,null,null,null,null,null,"Aug"]
[null,null,null,null,null,null,null,null,null,null,"Sep"]
[null,null,null,null,null,null,null,null,null,null,"Oct"]
[null,null,null,null,null,null,null,null,null,null,"Nov"]
[null,null,null,null,null,null,null,null,null,null,"Dec"]
[null,null,null,null,null,null,null,null,null,null,"Annual",{"$f":"AVERAGE(L25:L36)","v":{"$error":"#DIV/0!"}},{"$f":"MAX(M25:M36)","v":0},{"$f":"AVERAGE(N25:N36)","v":{"$error":"#DIV/0!"}},{"$f":"MAX(O25:O36)","v":0}]
[]
[null,null,null,null,null,null,null,null,null,{"$f":"+A8","v":2024},"mg/Nm3","Monthly mean of half-hourly averages","Highest half- hourly average","Monthly mean of  daily averages","Highest daily average"]
[null,null,null,null,null,null,null,null,null,"A3","Jan"]
[null,null,null,null,null,null,null,null,null,null,"Feb"]
[null,null,null,null,null,null,null,null,null,null,"Mar"]
[null,null,null,null,null,null,null,null,null,null,"Apr"]
[null,null,null,null,null,null,null,null,null,null,"May"]
[null,null,null,null,null,null,null,null,null,null,"Jun"]
[null,null,null,null,null,null,null,null,null,null,"Jul"]
[null,null,null,null,null,null,null,null,null,null,"Aug"]
[null,null,null,null,null,null,null,null,null,null,"Sep"]
[null,null,null,null,null,null,null,null,null,null,"Oct"]
[null,null,null,null,null,null,null,null,null,null,"Nov"]
["Comments :",null,null,null,null,null,null,null,null,null,"Dec"]
[null,null,null,null,null,null,null,null,null,null,"Annual",{"$f":"AVERAGE(L40:L51)","v":{"$error":"#DIV/0!"}},{"$f":"MAX(M40:M51)","v":0},{"$f":"AVERAGE(N40:N51)","v":{"$error":"#DIV/0!"}},{"$f":"MAX(O40:O51)","v":0}]
[]
[null,null,null,null,null,null,null,null,null,{"$f":"+A8","v":2024},"mg/Nm3","Monthly mean of half-hourly averages","Highest half- hourly average","Monthly mean of  daily averages","Highest daily average"]
[null,null,null,null,null,null,null,null,null,"A4","Jan"]
[null,null,null,null,null,null,null,null,null,null,"Feb"]
[null,null,null,null,null,null,null,null,null,null,"Mar"]
[null,null,null,null,null,null,null,null,null,null,"Apr"]
[null,null,null,null,null,null,null,null,null,null,"May"]
[null,null,null,null,null,null,null,null,null,null,"Jun"]
[null,null,null,null,null,null,null,null,null,null,"Jul"]
[null,null,null,null,null,null,null,null,null,null,"Aug"]
[null,null,null,null,null,null,null,null,null,null,"Sep"]
[null,null,null,null,null,null,null,null,null,null,"Oct"]
[null,null,null,null,null,null,null,null,null,null,"Nov"]
[null,null,null,null,null,null,null,null,null,null,"Dec"]
[null,null,null,null,null,null,null,null,null,null,"Annual",{"$f":"AVERAGE(L55:L66)","v":{"$error":"#DIV/0!"}},{"$f":"MAX(M55:M66)","v":0},{"$f":"AVERAGE(N55:N66)","v":{"$error":"#DIV/0!"}},{"$f":"MAX(O55:O66)","v":0}]
[]
[null,null,null,null,null,null,null,null,null,{"$f":"+A8","v":2024},"mg/Nm3","Monthly mean of half-hourly averages","Highest half- hourly average","Monthly mean of  daily averages","Highest daily average"]
[null,null,null,null,null,null,null,null,null,"A5","Jan"]
[null,null,null,null,null,null,null,null,null,null,"Feb"]
[null,null,null,null,null,null,null,null,null,null,"Mar"]
[null,null,null,null,null,null,null,null,null,null,"Apr"]
[null,null,null,null,null,null,null,null,null,null,"May"]
[null,null,null,null,null,null,null,null,null,null,"Jun"]
[null,null,null,null,null,null,null,null,null,null,"Jul"]
[null,null,null,null,null,null,null,null,null,null,"Aug"]
[null,null,null,null,null,null,null,null,null,null,"Sep"]
[null,null,null,null,null,null,null,null,null,null,"Oct"]
[null,null,null,null,null,null,null,null,null,null,"Nov"]
[null,null,null,null,null,null,null,null,null,null,"Dec"]
[null,null,null,null,null,null,null,null,null,null,"Annual",{"$f":"AVERAGE(L70:L81)","v":{"$error":"#DIV/0!"}},{"$f":"MAX(M70:M81)","v":0},{"$f":"AVERAGE(N70:N81)","v":{"$error":"#DIV/0!"}},{"$f":"MAX(O70:O81)","v":0}]

{"sheet":"CO 95% 10 min","index":21,"n_rows":82,"n_cols":19,"rows_kept":82,"cut":false,"hidden":false,"merged":[[4,0,5,7],[6,18,10,20],[12,18,14,20],[15,18,18,20],[69,10,81,10],[7,1,7,4],[7,5,7,7],[7,10,7,16],[9,10,21,10],[24,10,36,10],[39,10,51,10],[50,0,50,7],[51,0,54,7],[54,10,66,10]]}
[{"$f":"+'Cover Page'!$B$29","v":"Annual Performance Report 2024"},null,null,null,{"$f":"+'Cover Page'!$B$33","v":"The Coventry and Solihull Waste Disposal Company Limited"}]
[]
["Monitoring of Carbon Monoxide (10-minute avg)",null,null,null,"Whole Installation",null,null,"See  Notes in Cell S3",null,{"$f":"+A3","v":"Monitoring of Carbon Monoxide (10-minute avg)"},null,null,null,null,"Per Combustion Line",null,"Notes:",null,"Notes:"]
[]
["Please complete this tab for your plant if you have 10-minute average CO ELVs; otherwise, leave it blank and complete the CO 0.5 hourly tab"]
[]
[null,null,null,null,null,null,null,null,null,null,null,null,null,null,null,null,null,null,"User to add logic to complete Whole installation, Table A5:H18. From the data in Per Combustion Line, Table K6:Q79, subject to No. of lines installed"]
[{"$f":"+'Cover Page'!C39","v":2024},"10-minute Reference Periods",null,null,null,"Daily Reference Periods"]
["mg/Nm3","95%ile 10-min avg CO ELV","Highest daily 95%ile 10-min average","Monthly mean of 10-min averages","Highest 10-min average","Daily CO ELV","Monthly mean of  daily averages","Highest daily average",null,null,{"$f":"+A8","v":2024},"mg/Nm3","Highest daily 95%ile 10-min average","Monthly mean of 10-min averages","Highest 10-min average","Monthly mean of  daily averages","Highest daily average"]
["Jan",150,75.19,21.08,643.91,50,20.82,41.63,null,null,"A1","Jan",75.19,29.97,643.91,29.59,41.63]
["Feb",{"$f":"+B10","v":150},68.95,21.11,455.97,{"$f":"+F10","v":50},21.07,34.71,null,null,null,"Feb",68.95,22.08,455.97,22.08,34.71]
["Mar",{"$f":"+B11","v":150},109.92,22.7,360,{"$f":"+F11","v":50},22.67,36.6,null,null,null,"Mar",62.28,24.21,355.51,24.2,30.55,null,"Whole Installation table A5:H18:"]
["Apr",150,73.91,22.12,317.58999999999997,50,22.1,34.729999999999997,null,null,null,"Apr",73.91,26.24,317.58999999999997,26.17,34.729999999999997,null,"Mean: for 10-min and daily periods use average of all operational combustion lines."]
["May",150,96.45,20.95,344.4,50,20.96,32.96,null,null,null,"May",57.42,21.42,289.60000000000002,21.41,26.91]
["Jun",150,140.35,20.75,449.16,50,20.45,43,null,null,null,"Jun",79.58,22.12,252.45,21.95,28.76]
["Jul",150,64.94,17.84,401.97,50,17.71,27.1,null,null,null,"Jul",34.29,18.29,200.53,18.13,22.84,null,"Maximum: for 10-min and daily periods use the highest of all operational combustion lines in any month."]
["Aug",150,73.81,16.68,320.83999999999997,50,16.600000000000001,30.88,null,null,null,"Aug",73.81,17.13,295.32,16.89,22.94]
["Sep",150,53.81,18.66,526.89,50,18.22,29.48,null,null,null,"Sep",48.98,20.239999999999998,305.63,19.64,29.48]
["Oct",150,94.67,18.850000000000001,516.85,50,18.96,33.68,null,null,null,"Oct",67.39,16.93,164.16,16.93,24.42]
["Nov",150,74.349999999999994,19.36,331.93,50,19.25,30.13,null,null,null,"Nov",74.349999999999994,19.27,301.62,19.27,30.13]
["Dec",150,116.87,20.420000000000002,285.25,50,20.57,37.08,null,null,null,"Dec",88.54,23,285.25,23,31.83]
[null,null,null,null,null,null,null,null,null,null,null,"Annual",{"$f":"AVERAGE(M10:M21)","v":67.057500000000005},null,{"$f":"MAX(O10:O21)","v":643.91},{"$f":"AVERAGE(P10:P21)","v":21.605},{"$f":"MAX(Q10:Q21)","v":41.63}]
[]
[null,null,null,null,null,null,null,null,null,null,{"$f":"+A8","v":2024},"mg/Nm3","Highest daily 95%ile 10-min average","Monthly mean of 10-min averages","Highest 10-min average","Monthly mean of  daily averages","Highest daily average"]
[null,null,null,null,null,null,null,null,null,null,"A2","Jan",50.71,16.98,205.78,17.05,24.36]
[null,null,null,null,null,null,null,null,null,null,null,"Feb",68.099999999999994,20.65,210.6,20.399999999999999,28.19]
[null,null,null,null,null,null,null,null,null,null,null,"Mar",109.92,21.81,360,21.6,36.6]
[null,null,null,null,null,null,null,null,null,null,null,"Apr",64.13,16.78,200.02,16.78,22.14]
[null,null,null,null,null,null,null,null,null,null,null,"May",96.45,22.63,200.04,22.63,32.96]
[null,null,null,null,null,null,null,null,null,null,null,"Jun",140.35,22.52,449.16,22.05,43]
[null,null,null,null,null,null,null,null,null,null,null,"Jul",64.94,20.25,222.88,20.100000000000001,27.1]
[null,null,null,null,null,null,null,null,null,null,null,"Aug",72.56,17.79,320.83999999999997,17.8,30.88]
[null,null,null,null,null,null,null,null,null,null,null,"Sep",53.81,16.04,526.89,14.68,25.65]
[null,null,null,null,null,null,null,null,null,null,null,"Oct",94.67,16.89,516.85,17.11,33.68]
[null,null,null,null,null,null,null,null,null,null,null,"Nov",51.92,18.34,331.93,18.329999999999998,25.08]
[null,null,null,null,null,null,null,null,null,null,null,"Dec",40.15,15.66,239.59,15.91,22.67]
[null,null,null,null,null,null,null,null,null,null,null,"Annual",{"$f":"AVERAGE(M25:M36)","v":75.64249999999997},null,{"$f":"MAX(O25:O36)","v":526.89},{"$f":"AVERAGE(P25:P36)","v":18.703333333333337},{"$f":"MAX(Q25:Q36)","v":43}]
[]
[null,null,null,null,null,null,null,null,null,null,{"$f":"+A8","v":2024},"mg/Nm3","Highest daily 95%ile 10-min average","Monthly mean of 10-min averages","Highest 10-min average","Monthly mean of  daily averages","Highest daily average"]
[null,null,null,null,null,null,null,null,null,null,"A3","Jan",62.61,18.68,636.9,18.84,30.57]
[null,null,null,null,null,null,null,null,null,null,null,"Feb",55.84,20.67,283.25,20.85,27.86]
[null,null,null,null,null,null,null,null,null,null,null,"Mar",45.77,21.87,208.89,21.86,29.58]
[null,null,null,null,null,null,null,null,null,null,null,"Apr",73.400000000000006,23.42,246.76,23.3,31.7]
[null,null,null,null,null,null,null,null,null,null,null,"May",44.65,18.13,344.4,17.97,28.33]
[null,null,null,null,null,null,null,null,null,null,null,"Jun",94.88,17.78,380.53,17.64,31.5]
[null,null,null,null,null,null,null,null,null,null,null,"Jul",47.8,15.27,401.97,15.27,20.64]
[null,null,null,null,null,null,null,null,null,null,null,"Aug",40.200000000000003,15.22,218.81,15.23,20.010000000000002]
[null,null,null,null,null,null,null,null,null,null,null,"Sep",49.2,18.41,185.21,18.41,28.41]
[null,null,null,null,null,null,null,null,null,null,null,"Oct",64.7,22.6,193.97,22.59,31.05]
[null,null,null,null,null,null,null,null,null,null,null,"Nov",60.62,22.1,234.79,21.67,28.56]
["Comments :",null,null,null,null,null,null,null,null,null,null,"Dec",116.87,22.57,235.84,22.63,37.08]
["Environment Agency explanatory note: The 10-minute average ELV is based on the “95th percentile”. In this case this means that 95% of the 10 minute averages in the relevant 24-hour period (i.e. 137) must be below 150 mg/Nm3, and 5% (i.e. 7) are allowed to be any value above 150 mg/Nm3. Whilst we expect operators to minimise CO emissions at all times, it is perfectly acceptable for the value of the maximum 10-minute average to be above 150 mg/Nm3, provided the 95th percentile ELV has been met for that period. ",null,null,null,null,null,null,null,null,null,null,"Annual",{"$f":"AVERAGE(M40:M51)","v":63.045000000000009},null,{"$f":"MAX(O40:O51)","v":636.9},{"$f":"AVERAGE(P40:P51)","v":19.688333333333333},{"$f":"MAX(Q40:Q51)","v":37.08}]
[]
[null,null,null,null,null,null,null,null,null,null,{"$f":"+A8","v":2024},"mg/Nm3","Highest daily 95%ile 10-min average","Monthly mean of 10-min averages","Highest 10-min average","Monthly mean of  daily averages","Highest daily average"]
[null,null,null,null,null,null,null,null,null,null,"A4","Jan"]
[null,null,null,null,null,null,null,null,null,null,null,"Feb"]
[null,null,null,null,null,null,null,null,null,null,null,"Mar"]
[null,null,null,null,null,null,null,null,null,null,null,"Apr"]
[null,null,null,null,null,null,null,null,null,null,null,"May"]
[null,null,null,null,null,null,null,null,null,null,null,"Jun"]
[null,null,null,null,null,null,null,null,null,null,null,"Jul"]
[null,null,null,null,null,null,null,null,null,null,null,"Aug"]
[null,null,null,null,null,null,null,null,null,null,null,"Sep"]
[null,null,null,null,null,null,null,null,null,null,null,"Oct"]
[null,null,null,null,null,null,null,null,null,null,null,"Nov"]
[null,null,null,null,null,null,null,null,null,null,null,"Dec"]
[null,null,null,null,null,null,null,null,null,null,null,"Annual",{"$f":"AVERAGE(M55:M66)","v":{"$error":"#DIV/0!"}},null,{"$f":"MAX(O55:O66)","v":0},{"$f":"AVERAGE(P55:P66)","v":{"$error":"#DIV/0!"}},{"$f":"MAX(Q55:Q66)","v":0}]
[]
[null,null,null,null,null,null,null,null,null,null,{"$f":"+A8","v":2024},"mg/Nm3","95%ile 10-min avg maximum","Monthly CO 10-min avg mean","10-min avg maximum","Monthly daily mean","Monthly daily maximum"]
[null,null,null,null,null,null,null,null,null,null,"A5","Jan"]
[null,null,null,null,null,null,null,null,null,null,null,"Feb"]
[null,null,null,null,null,null,null,null,null,null,null,"Mar"]
[null,null,null,null,null,null,null,null,null,null,null,"Apr"]
[null,null,null,null,null,null,null,null,null,null,null,"May"]
[null,null,null,null,null,null,null,null,null,null,null,"Jun"]
[null,null,null,null,null,null,null,null,null,null,null,"Jul"]
[null,null,null,null,null,null,null,null,null,null,null,"Aug"]
[null,null,null,null,null,null,null,null,null,null,null,"Sep"]
[null,null,null,null,null,null,null,null,null,null,null,"Oct"]
[null,null,null,null,null,null,null,null,null,null,null,"Nov"]
[null,null,null,null,null,null,null,null,null,null,null,"Dec"]
[null,null,null,null,null,null,null,null,null,null,null,"Annual",{"$f":"AVERAGE(M70:M81)","v":{"$error":"#DIV/0!"}},null,{"$f":"MAX(O70:O81)","v":0},{"$f":"AVERAGE(P70:P81)","v":{"$error":"#DIV/0!"}},{"$f":"MAX(Q70:Q81)","v":0}]

{"sheet":"NH3","index":22,"n_rows":79,"n_cols":17,"rows_kept":79,"cut":false,"hidden":false,"merged":[[3,16,7,18],[9,16,11,18],[12,16,15,18],[66,9,78,9],[4,1,4,3],[4,4,4,6],[4,9,4,14],[6,9,18,9],[21,9,33,9],[36,9,48,9],[47,0,47,6],[48,0,51,6],[51,9,63,9],[18,4,18,6]]}
[{"$f":"+'Cover Page'!$B$29","v":"Annual Performance Report 2024"},null,null,null,{"$f":"+'Cover Page'!$B$33","v":"The Coventry and Solihull Waste Disposal Company Limited"}]
[]
["Monitoring of Ammnonia emissions ",null,null,"Whole Installation",null,null,"See  Notes in Cell Q3",null,null,{"$f":"+A3","v":"Monitoring of Ammnonia emissions "},null,null,null,"Per Combustion Line",null,null,"Notes:"]
[null,null,null,null,null,null,null,null,null,null,null,null,null,null,null,null,"User to add logic to complete Whole installation, Table A5:G18. From the data in Per Combustion Line, Table J6:O79, subject to No. of lines installed"]
[{"$f":"+'Cover Page'!C39","v":2024},"1/2 Hourly Reference Periods",null,null,"Daily Reference Periods"]
["mg/Nm3","1/2 hourly NH3 ELV","Monthly mean of half-hourly averages","Highest half- hourly average","Daily NH3 ELV","Monthly mean of  daily averages","Highest daily average",null,null,{"$f":"+A5","v":2024},"mg/Nm3","Monthly mean of half-hourly averages","Highest half- hourly average","Monthly mean of  daily averages","Highest daily average"]
["Jan","None",null,null,15,10.81,14.12,null,null,"A1","Jan",11.31,25.74,11.33,12.87]
["Feb",{"$f":"+B7","v":"None"},null,null,15,10.76,13.67,null,null,null,"Feb",10.93,24.23,10.96,13.53]
["Mar",{"$f":"+B8","v":"None"},null,null,15,11.22,13.93,null,null,null,"Mar",12.09,19.88,12.09,13.78,null,"Whole Installation table A5:G18:"]
["Apr","None",null,null,15,11.29,14.11,null,null,null,"Apr",12.29,24.28,12.36,14.11,null,"Mean: for 1/2 hourly and daily periods calculate mean of values across all operational combustion lines for the month"]
["May","None",null,null,15,11.67,13.63,null,null,null,"May",11.77,25.05,11.77,12.83]
["Jun","None",null,null,15,11.69,13.69,null,null,null,"Jun",11.83,22.06,11.84,13.69]
["Jul","None",null,null,15,11.27,13.51,null,null,null,"Jul",9.6999999999999993,32.31,9.7200000000000006,11.11,null,"Maximum: for 1/2 hourly and daily periods use the highest value across all operational combustion lines for the month"]
["Aug","None",null,null,15,7.61,11.59,null,null,null,"Aug",6.47,20.89,6.48,8.43]
["Sep","None",null,null,15,7.38,10.24,null,null,null,"Sep",6.77,12.88,6.89,9.32]
["Oct","None",null,null,15,5.51,8.86,null,null,null,"Oct",3.02,8.17,3.02,4.3]
["Nov","None",null,null,15,5.69,12.69,null,null,null,"Nov",3.41,10.34,3.41,5.1100000000000003]
["Dec","None",null,null,15,7.15,14.12,null,null,null,"Dec",4.34,11.24,4.3499999999999996,5.93]
[null,null,null,null,null,null,null,null,null,null,"Annual",{"$f":"AVERAGE(L7:L18)","v":8.6608333333333327},{"$f":"MAX(M7:M18)","v":32.31},{"$f":"AVERAGE(N7:N18)","v":8.6849999999999987},{"$f":"MAX(O7:O18)","v":14.11}]
[]
[null,null,null,null,null,null,null,null,null,{"$f":"+A5","v":2024},"mg/Nm3","Monthly mean of half-hourly averages","Highest half- hourly average","Monthly mean of  daily averages","Highest daily average"]
[null,null,null,null,null,null,null,null,null,"A2","Jan",12.27,26.66,12.28,14.12]
[null,null,null,null,null,null,null,null,null,null,"Feb",11.15,28.47,11.15,13.67]
[null,null,null,null,null,null,null,null,null,null,"Mar",11.44,20.84,11.56,13.93]
[null,null,null,null,null,null,null,null,null,null,"Apr",10.98,17.73,10.96,13.33]
[null,null,null,null,null,null,null,null,null,null,"May",12.18,19.37,12.18,13.63]
[null,null,null,null,null,null,null,null,null,null,"Jun",11.4,21.79,11.48,12.8]
[null,null,null,null,null,null,null,null,null,null,"Jul",10.91,40.57,10.97,12.25]
[null,null,null,null,null,null,null,null,null,null,"Aug",7.86,20.07,7.86,10.37]
[null,null,null,null,null,null,null,null,null,null,"Sep",7.38,30.92,7.31,10.24]
[null,null,null,null,null,null,null,null,null,null,"Oct",6.78,15.46,6.73,8.86]
[null,null,null,null,null,null,null,null,null,null,"Nov",6.95,18.579999999999998,6.95,10.3]
[null,null,null,null,null,null,null,null,null,null,"Dec",9.2899999999999991,18.3,9.2799999999999994,14.12]
[null,null,null,null,null,null,null,null,null,null,"Annual",{"$f":"AVERAGE(L22:L33)","v":9.8825000000000003},{"$f":"MAX(M22:M33)","v":40.57},{"$f":"AVERAGE(N22:N33)","v":9.8925000000000001},{"$f":"MAX(O22:O33)","v":14.12}]
[]
[null,null,null,null,null,null,null,null,null,{"$f":"+A5","v":2024},"mg/Nm3","Monthly mean of half-hourly averages","Highest half- hourly average","Monthly mean of  daily averages","Highest daily average"]
[null,null,null,null,null,null,null,null,null,"A3","Jan",9.02,22.9,9,12.08]
[null,null,null,null,null,null,null,null,null,null,"Feb",10.02,18.100000000000001,10.17,12.94]
[null,null,null,null,null,null,null,null,null,null,"Mar",10.130000000000001,22.42,10.119999999999999,12.54]
[null,null,null,null,null,null,null,null,null,null,"Apr",10.54,26.89,10.58,12.65]
[null,null,null,null,null,null,null,null,null,null,"May",10.75,21.31,10.82,11.98]
[null,null,null,null,null,null,null,null,null,null,"Jun",11.76,24.39,11.76,13.33]
[null,null,null,null,null,null,null,null,null,null,"Jul",12.31,28.41,12.31,13.51]
[null,null,null,null,null,null,null,null,null,null,"Aug",8.36,36.21,8.36,11.59]
[null,null,null,null,null,null,null,null,null,null,"Sep",7.74,19.28,7.74,9.77]
[null,null,null,null,null,null,null,null,null,null,"Oct",6.92,15.84,6.92,8.85]
[null,null,null,null,null,null,null,null,null,null,"Nov",8.33,16.190000000000001,8.49,12.69]
["Comments :",null,null,null,null,null,null,null,null,null,"Dec",7.86,39.75,7.95,11.56]
["An indicated ELV value of zero in the table above means that no ammonia limit is/was set in the permit.  ",null,null,null,null,null,null,null,null,null,"Annual",{"$f":"AVERAGE(L37:L48)","v":9.4783333333333335},{"$f":"MAX(M37:M48)","v":39.75},{"$f":"AVERAGE(N37:N48)","v":9.5183333333333326},{"$f":"MAX(O37:O48)","v":13.51}]
[]
[null,null,null,null,null,null,null,null,null,{"$f":"+A5","v":2024},"mg/Nm3","Monthly mean of half-hourly averages","Highest half- hourly average","Monthly mean of  daily averages","Highest daily average"]
[null,null,null,null,null,null,null,null,null,"A4","Jan"]
[null,null,null,null,null,null,null,null,null,null,"Feb"]
[null,null,null,null,null,null,null,null,null,null,"Mar"]
[null,null,null,null,null,null,null,null,null,null,"Apr"]
[null,null,null,null,null,null,null,null,null,null,"May"]
[null,null,null,null,null,null,null,null,null,null,"Jun"]
[null,null,null,null,null,null,null,null,null,null,"Jul"]
[null,null,null,null,null,null,null,null,null,null,"Aug"]
[null,null,null,null,null,null,null,null,null,null,"Sep"]
[null,null,null,null,null,null,null,null,null,null,"Oct"]
[null,null,null,null,null,null,null,null,null,null,"Nov"]
[null,null,null,null,null,null,null,null,null,null,"Dec"]
[null,null,null,null,null,null,null,null,null,null,"Annual",{"$f":"AVERAGE(L52:L63)","v":{"$error":"#DIV/0!"}},{"$f":"MAX(M52:M63)","v":0},{"$f":"AVERAGE(N52:N63)","v":{"$error":"#DIV/0!"}},{"$f":"MAX(O52:O63)","v":0}]
[]
[null,null,null,null,null,null,null,null,null,{"$f":"+A5","v":2024},"mg/Nm3","Monthly mean of half-hourly averages","Highest half- hourly average","Monthly mean of  daily averages","Highest daily average"]
[null,null,null,null,null,null,null,null,null,"A5","Jan"]
[null,null,null,null,null,null,null,null,null,null,"Feb"]
[null,null,null,null,null,null,null,null,null,null,"Mar"]
[null,null,null,null,null,null,null,null,null,null,"Apr"]
[null,null,null,null,null,null,null,null,null,null,"May"]
[null,null,null,null,null,null,null,null,null,null,"Jun"]
[null,null,null,null,null,null,null,null,null,null,"Jul"]
[null,null,null,null,null,null,null,null,null,null,"Aug"]
[null,null,null,null,null,null,null,null,null,null,"Sep"]
[null,null,null,null,null,null,null,null,null,null,"Oct"]
[null,null,null,null,null,null,null,null,null,null,"Nov"]
[null,null,null,null,null,null,null,null,null,null,"Dec"]
[null,null,null,null,null,null,null,null,null,null,"Annual",{"$f":"AVERAGE(L67:L78)","v":{"$error":"#DIV/0!"}},{"$f":"MAX(M67:M78)","v":0},{"$f":"AVERAGE(N67:N78)","v":{"$error":"#DIV/0!"}},{"$f":"MAX(O67:O78)","v":0}]

{"sheet":"Template changes log","index":23,"n_rows":18,"n_cols":3,"rows_kept":18,"cut":false,"hidden":false,"merged":[]}
["Log of changes to template (Environment Agency use only)"]
[]
["Date","Description of change","New version number and date"]
["2024-01-16","Air (periodic) tab: corrected default O2 reference from 6 to 11% ","Version 23.5a (for incinerators) - 16/01/2024"]
["2024-09-23","Air (periodic) tab: corrected symbol for Thallium to Tl"]
["2024-09-23","Air (periodic) tab: removed last year's references to different emission limit values applying from 03/12/23 and updated all relevant ELVs"]
["2024-09-23","Tabs for continuously monitored pollutants (HCl, SO2 etc.): changed terminology in table headings to improve clarity"]
["2024-09-23","Tabs for continuously monitored pollutants (HCl, SO2 etc.): removed last year's references to different emission limit values applying from 03/12/23 and updated all relevant ELVs"]
["2024-09-23","Perf 1 tab: updated formula for water usage to report m3 rather than litres and corrected error with formula copying operator name"]
["2024-09-23","Operational Summary tab: table added on start-ups and shut-downs"]
["2024-09-23","Operational Summary tab: table added on dioxins and mercury protocols"]
["2024-09-23","Operational Summary tab: table added on AST, QAL 2 and calibration functions"]
["2024-09-23","CO2 N2O tab: various changes made to notes to reflect the fact that most plants should now have calibrated CEMS and flow meters + some have C14 samplers and more up to date industry data","Version 24a (for incinerators) - 23/09/24"]
["2024-11-08","CO2 N2O tab: Changed the N2O CO2 equivalence factor from 298 to 265 in line with recently updated government greenhouse gas figures: https://www.gov.uk/government/publications/greenhouse-gas-reporting-conversion-factors-2024"]
["2024-11-08","CO2 N2O tab: Added an additional requirement for municipal EfW plants to state the yearly average biogenic percentage of the waste by mass, and reference to a document which sets out a methodology for calculating NCV of waste from the results of C14 sampling."]
["2024-11-08","Permit Compliance tab: Two additional columns added + explanatory notes to the table entitled \"Summary of non-compliances under the permit\" to allow CCS scores to be stated where relevant. "]
["2024-11-08","Residue Quality tab: Note added explaining application of TOC and LOI limits and asking operators to report both metrics where measured. ","Version 24.1a (for incinerators) - 08/11/24"]
["2024-11-27","Operational Summary tab: Tables on mercury & dioxins protocols and ASTs removed (covered instead by new tables added to updated Air 9 periodic monitoring form)","Version 24.2a (for incinerators) - 27/11/24"]